Body Name,Body,Service Division Label,Service Division Code,Organisational Unit,Expenditure Category,Expenditure Code,CIPFA detailed expediture type,CIPFA detailed expediture code,Narrative,Date,Transaction number,Net Amount,Capital and Revenue,Supplier Name,Supplier ID
Chorley Borough Council,http://statistics.data.gov.uk/id/local-authority/30UE,General Fund Revenue Account,,Early Intervention,Works In Default,40199,Expenditure,,House clearance at ADDRESS REDACTED. Work carried out in default of Environmental Protection Act s.80 Notice.,08/11/2017,125295,"2,332.91",Revenue,3D Environmental Limited,76994
Chorley Borough Council,http://statistics.data.gov.uk/id/local-authority/30UE,Human Resource Unit,,Policy & Governance,Legal Fees,40171,Miscellaneous Expenses,,Mediation Services,10/11/2017,125372,520.00,Revenue,ACAS,21660
Chorley Borough Council,http://statistics.data.gov.uk/id/local-authority/30UE,Group Director Service Group A,,Policy & Governance,Other Fees,40212,Miscellaneous Expenses,5034,Bar fees for October 2017.,03/11/2017,125232,390.00,Revenue,Ace Bars Ltd,54338
Chorley Borough Council,http://statistics.data.gov.uk/id/local-authority/30UE,Leisure and Cultural Services,,Early Intervention,External Contractor - Trust or Charity,50008,Cash,,Active Nation Management Fee Contract Year 12 Apr17-Mar-18,08/11/2017,125212,"32,804.92",Revenue,Active Nation UK Ltd,17144
Chorley Borough Council,http://statistics.data.gov.uk/id/local-authority/30UE,Central & Support Appointments,1009,Early Intervention,Rent/Hire Of Premises,20017,Premises Related Expenses,,"Loss of income due to health mela/active nation Group Exercise loss of income  488.80 4 classes Block booking loss of income",10/11/2017,125325,738.80,Revenue,Active Nation UK Ltd,17144
Chorley Borough Council,http://statistics.data.gov.uk/id/local-authority/30UE,Use of Other Reserves and Bals,,Business Development & Growth,Contributions Parish Councils,40144,Expenditure,,cil receipt,01/11/2017,125090,749.01,Revenue,Adlington Town Council,17626
Chorley Borough Council,http://statistics.data.gov.uk/id/local-authority/30UE,Streetscene & Leisure Contract,,Policy & Governance,Fire Alarms,20072,Fixtures and Fittings,5010,13/09/17 CR276680 Work carried out to the Bengal St  Depot fire alarm system,03/11/2017,124973,259.00,Revenue,ADT Fire & Security,16645
Chorley Borough Council,http://statistics.data.gov.uk/id/local-authority/30UE,Street Services,,Policy & Governance,Fire Alarms,20072,Fixtures and Fittings,5010,09/08/17 CR071621 Works carried out to Bengal St depot fire alarm system,03/11/2017,124974,376.61,Revenue,ADT Fire & Security,16645
Chorley Borough Council,http://statistics.data.gov.uk/id/local-authority/30UE,Martin Walls,,Policy & Governance,Burglar Alarms & Security Systems,20075,Fixtures and Fittings,5010,As per quotation 143542/0 Supply and programming of 50 self adhesive discs for the Bengal St depot.,22/11/2017,125626,384.00,Revenue,ADT Fire & Security,16645
Chorley Borough Council,http://statistics.data.gov.uk/id/local-authority/30UE,Budget Holder Control Code,,Business Development & Growth,Grants To Other Organisations,40127,Cash,,sib grant,15/11/2017,125308,250.00,Revenue,NAME REDACTED,77021
Chorley Borough Council,http://statistics.data.gov.uk/id/local-authority/30UE,Finance Unit Management,,Customer & Digital,Bank Charges,40151,Miscellaneous Expenses,5034,account fee,08/11/2017,125262,"1,645.74",Revenue,Allpay Net Ltd,17242
Chorley Borough Council,http://statistics.data.gov.uk/id/local-authority/30UE,Cost of Service,,Customer & Digital,Other Contributions,40145,Contributions,,ADDRESS REDACTED,17/11/2017,125583,"4,706.00",Revenue,NAMES REDACTED,73775
Chorley Borough Council,http://statistics.data.gov.uk/id/local-authority/30UE,ICT Services,,Customer & Digital,Computer - Support Services,40111,Expenditure,,"Base charge for contract ref ANS/SOS/01451, covering the period 01/01/2018 to 31/03/2018",29/11/2017,125684,"9,000.00",Revenue,ANS Group,22502
Chorley Borough Council,http://statistics.data.gov.uk/id/local-authority/30UE,Housing Services Unit GF,,Policy & Governance,Car Leasing Payment,14100,Employees,,Driver: NAME REDACTED Quote: 3114156 Land Rover Range Rover Evoque 2.0 TD4 SE 5dr Hatchback Manual Diesel InControl ,22/11/2017,125213,"3,477.36",Revenue,Arnold Clark Finance Ltd,20685
Chorley Borough Council,http://statistics.data.gov.uk/id/local-authority/30UE,Comprehensive I&E Statement,,Policy & Governance,Car Leasing Payment,14100,Employees,,Car Lease,22/11/2017,125213,314.85,Revenue,Arnold Clark Finance Ltd,20685
Chorley Borough Council,http://statistics.data.gov.uk/id/local-authority/30UE,Control Accounts,Control,Policy & Governance,Manual Control Account,1,Balance Sheet,,Balance Sheet,22/11/2017,125213,-314.85,Revenue,Arnold Clark Finance Ltd,20685
Chorley Borough Council,http://statistics.data.gov.uk/id/local-authority/30UE,Chief Executive,,Policy & Governance,Car Leasing Payment,14100,Direct Employee Expenses,5001,NAME REDACTED,22/11/2017,125623,"3,353.04",Revenue,Arnold Clark Finance Ltd,20685
Chorley Borough Council,http://statistics.data.gov.uk/id/local-authority/30UE,Finance Unit Management,,Policy & Governance,Car Leasing Payment,14100,Direct Employee Expenses,5001,Car Lease,22/11/2017,125623,286.27,Revenue,Arnold Clark Finance Ltd,20685
Chorley Borough Council,http://statistics.data.gov.uk/id/local-authority/30UE,Chorley Council,,Policy & Governance,Manual Control Account,1,Other Subjective Codes,,,22/11/2017,125623,-286.27,Revenue,Arnold Clark Finance Ltd,20685
Chorley Borough Council,http://statistics.data.gov.uk/id/local-authority/30UE,Shared Financial Services,,Policy & Governance,Car Leasing Payment,14100,Direct Employee Expenses,5001,NAME REDACTED,22/11/2017,125624,"3,049.68",Revenue,Arnold Clark Finance Ltd,20685
Chorley Borough Council,http://statistics.data.gov.uk/id/local-authority/30UE,Chorley Borough Council,,Policy & Governance,Car Leasing Payment,14100,Direct Employee Expenses,5001,Car Lease,22/11/2017,125624,278.24,Revenue,Arnold Clark Finance Ltd,20685
Chorley Borough Council,http://statistics.data.gov.uk/id/local-authority/30UE,Chorley Council,,Policy & Governance,Manual Control Account,1,Other Subjective Codes,,,22/11/2017,125624,-278.24,Revenue,Arnold Clark Finance Ltd,20685
Chorley Borough Council,http://statistics.data.gov.uk/id/local-authority/30UE,Budget Holder Control Code,,Policy & Governance,Exhibitions & Special Events,40158,Miscellaneous Expenses,5034,Provision of Halloween and Bonfire Arts and Crafts in Market Walk,24/11/2017,125296,470.00,Revenue,ARTventurers Preston Chorley and Leyland,76837
Chorley Borough Council,http://statistics.data.gov.uk/id/local-authority/30UE,Homelessness Administration,,Early Intervention,Laundry,40042,Net Expenditure or Balance,,"Linen Service at Cotswold Supported Housing, Cotswold Rd, Chorley, PR73HW. This is to cover the period between April 2017",22/11/2017,125199,278.37,Revenue,Berendsen UK Ltd,20799
Chorley Borough Council,http://statistics.data.gov.uk/id/local-authority/30UE,Cost of Service,,Business Development & Growth,Miscellaneous Expenses,40200,Miscellaneous Expenses,5034,"Procurement consultancy support as per contract for Chorley Digital Office Park - 23,625.00 PII Cover of 5m, additional",08/11/2017,125311,"3,501.15",Revenue,Brian Farrington Ltd,16822
Chorley Borough Council,http://statistics.data.gov.uk/id/local-authority/30UE,Chorley Borough Council,,Business Development & Growth,Miscellaneous Expenses,40200,Miscellaneous Expenses,5034,"Procurement consultancy support as per contract for Chorley Digital Office Park - 23,625.00 PII Cover of 5m,additional premium",08/11/2017,125327,"1,277.60",Revenue,Brian Farrington Ltd,16822
Chorley Borough Council,http://statistics.data.gov.uk/id/local-authority/30UE,Chorley Borough Council,,Business Development & Growth,Miscellaneous Expenses,40200,Net Expenditure or Balance,,"Procurement consultancy support as per contract for Chorley Digital Office Park - 23,625.00 PII Cover of 5m,additional premium",08/11/2017,125328,"2,161.45",Revenue,Brian Farrington Ltd,16822
Chorley Borough Council,http://statistics.data.gov.uk/id/local-authority/30UE,Chorley Borough Council,,Policy & Governance,Exhibitions & Special Events,40158,Supplies and Services,,Provide children�s entertainment in Market Walk on Thursday 2 November,22/11/2017,125236,350.00,Revenue,Brian Gore,18370
Chorley Borough Council,http://statistics.data.gov.uk/id/local-authority/30UE,Revenue Outturn,,Business Development & Growth,Contributions Parish Councils,40144,Cash,,cil receipt,01/11/2017,125091,"1,353.86",Revenue,Brindle Parish Council,17023
Chorley Borough Council,http://statistics.data.gov.uk/id/local-authority/30UE,Group Director Service Group A,,Customer & Digital,Computer Software-Purchase,40100,Computer Purchases,,"Radon licence for 203sqkm Council area and 1 user, 3 years renewal",03/11/2017,124894,314.51,Revenue,British Geological Survey,21160
Chorley Borough Council,http://statistics.data.gov.uk/id/local-authority/30UE,ICT,,Customer & Digital,Telephones - Rentals,40083,Expenditure,,recurring charges,29/11/2017,125267,"3,517.13",Revenue,British Telecommunications Plc,17131
Chorley Borough Council,http://statistics.data.gov.uk/id/local-authority/30UE,Central Support Services,1009,Customer & Digital,Telephones - Calls,40084,Expenditure,,usage,29/11/2017,125267,201.14,Revenue,British Telecommunications Plc,17131
Chorley Borough Council,http://statistics.data.gov.uk/id/local-authority/30UE,General Fund Revenue Account,,Customer & Digital,Telephones - Other,40085,Communications,,one off,29/11/2017,125267,151.00,Revenue,British Telecommunications Plc,17131
Chorley Borough Council,http://statistics.data.gov.uk/id/local-authority/30UE,Service Unit Capital Schemes,,Business Development & Growth,Main Contractor,3007,Other,,"4 no. BXPU 1539-RT Manchester Pu Bollards 940mm above ground, Root fixed Coated black RAL 9005, White reflective band",01/11/2017,125080,460.00,Revenue,Broxap Ltd,16718
Chorley Borough Council,http://statistics.data.gov.uk/id/local-authority/30UE,Capital Fund,Capital,Business Development & Growth,Main Contractor,3007,Other,,4 no. BXPU 1539-RM Manchester Pu Removable Bollards Complete with ground socket 940mm above ground Coated black RAL,01/11/2017,125080,760.00,Capital,Broxap Ltd,16718
Chorley Borough Council,http://statistics.data.gov.uk/id/local-authority/30UE,Chorley Borough Council,,Business Development & Growth,Main Contractor,3007,Capital Expenditure,Capital,4 no. BXPU STD/SOCKET Standard removable socket to suit BXPU 1539-RM @ 75 each,01/11/2017,125080,300.00,Revenue,Broxap Ltd,16718
Chorley Borough Council,http://statistics.data.gov.uk/id/local-authority/30UE,Capital Expenditure,Capital,Business Development & Growth,Main Contractor,3007,Capital Expenditure,Capital,1 x Delivery charge 70,01/11/2017,125080,70.00,Capital,Broxap Ltd,16718
Chorley Borough Council,http://statistics.data.gov.uk/id/local-authority/30UE,Customer  Advice Services,,Early Intervention,Agency Staff,13000,Agency Staff,,Supply of temp Support worker,15/11/2017,125329,283.50,Revenue,BS Project Services Ltd,20328
Chorley Borough Council,http://statistics.data.gov.uk/id/local-authority/30UE,Capital,Capital,Policy & Governance,Main Contractor,3007,Capital Expenditure,Capital,Carrying out works as of quotation No q5192 Morning Room works at Astley Hall,22/11/2017,125638,"3,450.00",Capital,Bullen Conservation Ltd,68424
Chorley Borough Council,http://statistics.data.gov.uk/id/local-authority/30UE,Capital Fund,Capital,Policy & Governance,Main Contractor,3007,Other Subjective Codes,,"Townley Parker Bedroom - carry out works to remove Dado rail, protect floors and removal of wallpaper all as instructed.",29/11/2017,125751,950.00,Capital,Bullen Conservation Ltd,68424
Chorley Borough Council,http://statistics.data.gov.uk/id/local-authority/30UE,Corporate & Democratic Core,,Policy & Governance,Grants To Other Organisations,40127,Expenditure,,grant,29/11/2017,125800,250.00,Revenue,Buttermere Youth Club,77073
Chorley Borough Council,http://statistics.data.gov.uk/id/local-authority/30UE,Highways & Transport Services,107,Customer & Digital,Supplies-Grounds Maintenance,40025,Cash,,50 - 25kg bags of road mortar mix,15/11/2017,125503,404.00,Revenue,C & W BERRY LIMITED,18180
Chorley Borough Council,http://statistics.data.gov.uk/id/local-authority/30UE,Group Director Service Group A,,Customer & Digital,External Contractor,40198,Expenditure,,Emptying of interceptor and clearing of drains in Bengal St depot as required for EA licence at agreed price 65per hour 4hrs ,08/11/2017,125083,325.00,Revenue,C J Lyon,16579
Chorley Borough Council,http://statistics.data.gov.uk/id/local-authority/30UE,Chorley Borough Council,,Customer & Digital,External Contractor,40198,Expenditure,,Culvert jetting at The Common Adlington,22/11/2017,125563,250.00,Revenue,C J Lyon,16579
Chorley Borough Council,http://statistics.data.gov.uk/id/local-authority/30UE,Customer Services,,Customer & Digital,Emergency Call Out System,40096,Net Expenditure or Balance,,Out of hours call charges May 2017,17/11/2017,125477,387.28,Revenue,CallCare Ltd,20257
Chorley Borough Council,http://statistics.data.gov.uk/id/local-authority/30UE,Helen Sutton,,Customer & Digital,Emergency Call Out System,40096,Net Expenditure or Balance,,Out of hours standing charge July 2017,17/11/2017,125477,120.00,Revenue,CallCare Ltd,20257
Chorley Borough Council,http://statistics.data.gov.uk/id/local-authority/30UE,Street Environment,,Customer & Digital,Tools & Equipment - Maintenance,40005,Equipment,,Renew Comprehensive Service Contract Cover as per your quote BAR58033 dated 19th October 2017,10/11/2017,125330,967.00,Revenue,Cameron Forecourt Ltd,19884
Chorley Borough Council,http://statistics.data.gov.uk/id/local-authority/30UE,Environment,,Early Intervention,Tools & Equipment - Maintenance,40005,Tools and Equipment,,Charge for courier collection of Nor 140 in relation to a return of the equipment for investigation into a fault ,29/11/2017,125687,35.00,Revenue,Campbell Associates,21084
Chorley Borough Council,http://statistics.data.gov.uk/id/local-authority/30UE,Environment,,Early Intervention,Tools & Equipment - Maintenance,40005,Tools and Equipment,,Investigate the cause of an apparent fault with Nor 140 Noise recorder and advise what works are required to NAME REDACTED,29/11/2017,125687,75.00,Revenue,Campbell Associates,21084
Chorley Borough Council,http://statistics.data.gov.uk/id/local-authority/30UE,"Cultural, Environmental & Plan",,Early Intervention,Tools & Equipment - Maintenance,40005,Tools and Equipment,,NAME REDACTED on 01/11/17 please carry out repair option 1 to our Norsonic Nor 140. Option 1 being a brand new Nor 1209,29/11/2017,125687,943.00,Revenue,Campbell Associates,21084
Chorley Borough Council,http://statistics.data.gov.uk/id/local-authority/30UE,General Fund Revenue Account,,Policy & Governance,Refuse Collection,20037,Cleaning and Domestic Supplies,,"Provision of all services to Council sites Fragrances, mats, medical waste, vending machines April 17 to March 18",01/11/2017,124531,"1,834.80",Revenue,Cannon Hygiene Limited,18158
Chorley Borough Council,http://statistics.data.gov.uk/id/local-authority/30UE,Operational and IT Security,,Customer & Digital,Computer Equipment-Maintenance,40105,Expenditure,,"SW Maintenance, Remote SP, 8x5 1Hr react Period 17/09/2017 to 16/09/2018",03/11/2017,124895,"1,114.75",Revenue,Canon (UK) Ltd,17492
Chorley Borough Council,http://statistics.data.gov.uk/id/local-authority/30UE,General Fund Revenue Account,,Customer & Digital,Computer Equipment-Maintenance,40105,Expenditure,,Contract: GB-505918-OKS Contract: GB-506449-OKS,03/11/2017,124896,"2,379.80",Revenue,Canon (UK) Ltd,17492
Chorley Borough Council,http://statistics.data.gov.uk/id/local-authority/30UE,Use of Other Reserves and Bals,,Business Development & Growth,Contributions Parish Councils,40144,Expenditure,,cil receipt,01/11/2017,125092,583.18,Revenue,Charnock Richard Parish Cncl,16206
Chorley Borough Council,http://statistics.data.gov.uk/id/local-authority/30UE,Comprehensive I&E Statement,,Business Development & Growth,External Contractors,50008,Private Contractors,,Processing 074 - Provision of Notice Processing Services for period of 01.04.17 - 31.03.18 -Notice Processing Serv Automated,29/11/2017,125821,"1,053.42",Revenue,Chipside Ltd,22063
Chorley Borough Council,http://statistics.data.gov.uk/id/local-authority/30UE,Income and Expenditure Account,,Business Development & Growth,External Contractors,50008,Private Contractors,,Processing 075 - Notice to Owner Postage and Packing (estimated) for period of 01.04.17 - 31.03.18,29/11/2017,125821,80.64,Revenue,Chipside Ltd,22063
Chorley Borough Council,http://statistics.data.gov.uk/id/local-authority/30UE,"Highways, Roads & Transport Se",,Business Development & Growth,External Contractors,50008,Private Contractors,,Processing 076 - Charge Certificate Postage & Packing (estimated) for period of 01.04.17 - 31.03.18,29/11/2017,125821,30.40,Revenue,Chipside Ltd,22063
Chorley Borough Council,http://statistics.data.gov.uk/id/local-authority/30UE,Public Space Services Unit,,Business Development & Growth,External Contractors,50008,Private Contractors,,Processing 077 - Order for Recovery Postage & Packing (estimated) for period of 01.04.17 - 31.03.18,29/11/2017,125821,18.17,Revenue,Chipside Ltd,22063
Chorley Borough Council,http://statistics.data.gov.uk/id/local-authority/30UE,Chief Executive,,Business Development & Growth,External Contractors,50008,Net Expenditure or Balance,,Processing 086 - Other Correspondence Postage & Packing (such as responses to Pre & Post NTO/CC/OofR etc).,29/11/2017,125821,84.76,Revenue,Chipside Ltd,22063
Chorley Borough Council,http://statistics.data.gov.uk/id/local-authority/30UE,Performing Organisation,,Chief Executive,Tools & Equipment - Purchase,40003,Tools and Equipment,,tools,01/11/2017,125193,4.50,Revenue,Chorley BC Petty Cash,16301
Chorley Borough Council,http://statistics.data.gov.uk/id/local-authority/30UE,Central & Support Appointments,1009,Chief Executive,Tools & Equipment - Purchase,40003,Tools and Equipment,,fuse plugs,01/11/2017,125193,2.50,Revenue,Chorley BC Petty Cash,16301
Chorley Borough Council,http://statistics.data.gov.uk/id/local-authority/30UE,Performing Organisation,,Chief Executive,Tools & Equipment - Purchase,40003,Tools and Equipment,,walll planner,01/11/2017,125193,2.08,Revenue,Chorley BC Petty Cash,16301
Chorley Borough Council,http://statistics.data.gov.uk/id/local-authority/30UE,Corporate  Democratic Core,,Chief Executive,Use Of Transport - Mayoral Car,30015,Expenditure,,car wash,01/11/2017,125193,5.00,Revenue,Chorley BC Petty Cash,16301
Chorley Borough Council,http://statistics.data.gov.uk/id/local-authority/30UE,Central and Support Apportiona,,Chief Executive,Tools & Equipment - Purchase,40003,Tools and Equipment,,trolley,01/11/2017,125193,10.83,Revenue,Chorley BC Petty Cash,16301
Chorley Borough Council,http://statistics.data.gov.uk/id/local-authority/30UE,Performing Organisation,,Chief Executive,Tools & Equipment - Purchase,40003,Tools and Equipment,,trolley,01/11/2017,125193,10.83,Revenue,Chorley BC Petty Cash,16301
Chorley Borough Council,http://statistics.data.gov.uk/id/local-authority/30UE,"Cultural, Environmental & Plan",,Chief Executive,Children's Activities,40188,Miscellaneous Expenses,5034,parking,01/11/2017,125193,8.00,Revenue,Chorley BC Petty Cash,16301
Chorley Borough Council,http://statistics.data.gov.uk/id/local-authority/30UE,Early Intervention & Support,,Chief Executive,Children's Activities,40188,Miscellaneous Expenses,5034,arts and crafts,01/11/2017,125193,5.00,Revenue,Chorley BC Petty Cash,16301
Chorley Borough Council,http://statistics.data.gov.uk/id/local-authority/30UE,Legal Services Unit,,Chief Executive,Postages,40082,Postage,,postage,01/11/2017,125193,8.80,Revenue,Chorley BC Petty Cash,16301
Chorley Borough Council,http://statistics.data.gov.uk/id/local-authority/30UE,Central & Support Appointments,1009,Chief Executive,Tools & Equipment - Purchase,40003,Tools and Equipment,,milk jugs,01/11/2017,125193,13.33,Revenue,Chorley BC Petty Cash,16301
Chorley Borough Council,http://statistics.data.gov.uk/id/local-authority/30UE,Performing Organisation,,Chief Executive,Tools & Equipment - Purchase,40003,Tools and Equipment,,milk jugs,01/11/2017,125193,10.00,Revenue,Chorley BC Petty Cash,16301
Chorley Borough Council,http://statistics.data.gov.uk/id/local-authority/30UE,Central & Support Appointments,1009,Chief Executive,Tools & Equipment - Purchase,40003,Tools and Equipment,,milk jugs,01/11/2017,125193,10.00,Revenue,Chorley BC Petty Cash,16301
Chorley Borough Council,http://statistics.data.gov.uk/id/local-authority/30UE,Business Improvement,,Chief Executive,Refreshments,40036,Food,,milk,01/11/2017,125193,2.00,Revenue,Chorley BC Petty Cash,16301
Chorley Borough Council,http://statistics.data.gov.uk/id/local-authority/30UE,Central & Support Appointments,1009,Chief Executive,Refreshments,40036,Supplies and Services,,orange,01/11/2017,125193,11.00,Revenue,Chorley BC Petty Cash,16301
Chorley Borough Council,http://statistics.data.gov.uk/id/local-authority/30UE,Vision,,Chief Executive,Refreshments,40036,Food,,bag,01/11/2017,125193,3.50,Revenue,Chorley BC Petty Cash,16301
Chorley Borough Council,http://statistics.data.gov.uk/id/local-authority/30UE,Comprehensive I&E Statement,,Chief Executive,Community Develop Initiatives,40185,Miscellaneous Expenses,5034,arts,01/11/2017,125193,4.00,Revenue,Chorley BC Petty Cash,16301
Chorley Borough Council,http://statistics.data.gov.uk/id/local-authority/30UE,Neighbourhoods,,Chief Executive,Community Develop Initiatives,40185,Miscellaneous Expenses,5034,arts,01/11/2017,125193,3.00,Revenue,Chorley BC Petty Cash,16301
Chorley Borough Council,http://statistics.data.gov.uk/id/local-authority/30UE,Comprehensive I&E Statement,,Chief Executive,Community Develop Initiatives,40185,Miscellaneous Expenses,5034,arts,01/11/2017,125193,5.88,Revenue,Chorley BC Petty Cash,16301
Chorley Borough Council,http://statistics.data.gov.uk/id/local-authority/30UE,Recharges within central servi,,Chief Executive,Laundry,40042,Expenditure,,cleaners,01/11/2017,125193,17.33,Revenue,Chorley BC Petty Cash,16301
Chorley Borough Council,http://statistics.data.gov.uk/id/local-authority/30UE,Unapportionable Central OHeads,1009,Chief Executive,Tools & Equipment - Purchase,40003,Tools and Equipment,,screws,01/11/2017,125193,1.79,Revenue,Chorley BC Petty Cash,16301
Chorley Borough Council,http://statistics.data.gov.uk/id/local-authority/30UE,General Fund Revenue Account,,Chief Executive,Refreshments,40036,Food,,milk,01/11/2017,125193,0.75,Revenue,Chorley BC Petty Cash,16301
Chorley Borough Council,http://statistics.data.gov.uk/id/local-authority/30UE,Corporate and Customer,,Chief Executive,Tools & Equipment - Purchase,40003,Tools and Equipment,,bolts,01/11/2017,125193,3.00,Revenue,Chorley BC Petty Cash,16301
Chorley Borough Council,http://statistics.data.gov.uk/id/local-authority/30UE,Democratic Representation,,Chief Executive,Mayoral Hospitality,40123,Expenditure,,stones,01/11/2017,125193,1.71,Revenue,Chorley BC Petty Cash,16301
Chorley Borough Council,http://statistics.data.gov.uk/id/local-authority/30UE,Comprehensive I&E Statement,,Chief Executive,Community Develop Initiatives,40185,Miscellaneous Expenses,5034,ribbon,01/11/2017,125193,3.99,Revenue,Chorley BC Petty Cash,16301
Chorley Borough Council,http://statistics.data.gov.uk/id/local-authority/30UE,Democratic Representation & Ma,1007,Chief Executive,Use Of Transport - Mayoral Car,30015,Expenditure,,car wash,01/11/2017,125193,5.00,Revenue,Chorley BC Petty Cash,16301
Chorley Borough Council,http://statistics.data.gov.uk/id/local-authority/30UE,Unapportionable Central OHeads,1009,Chief Executive,Tools & Equipment - Purchase,40003,Tools and Equipment,,drain cleaner,01/11/2017,125193,1.67,Revenue,Chorley BC Petty Cash,16301
Chorley Borough Council,http://statistics.data.gov.uk/id/local-authority/30UE,Chorley Borough Council,,Chief Executive,Tools & Equipment - Purchase,40003,Tools and Equipment,,dishwasher cleaner,01/11/2017,125193,2.45,Revenue,Chorley BC Petty Cash,16301
Chorley Borough Council,http://statistics.data.gov.uk/id/local-authority/30UE,Comprehensive I&E Statement,,Chief Executive,Computer Equipment-Purchase,40098,Communication and Computing,5028,cds,01/11/2017,125193,4.17,Revenue,Chorley BC Petty Cash,16301
Chorley Borough Council,http://statistics.data.gov.uk/id/local-authority/30UE,Corporate  Democratic Core,,Chief Executive,Use Of Transport - Mayoral Car,30015,Expenditure,,car wahs,01/11/2017,125193,5.00,Revenue,Chorley BC Petty Cash,16301
Chorley Borough Council,http://statistics.data.gov.uk/id/local-authority/30UE,Environment,,Chief Executive,Miscellaneous Expenses,40200,Net Expenditure or Balance,,electricity,01/11/2017,125193,20.00,Revenue,Chorley BC Petty Cash,16301
Chorley Borough Council,http://statistics.data.gov.uk/id/local-authority/30UE,Environment and Community,,Chief Executive,Miscellaneous Expenses,40200,Net Expenditure or Balance,,electricity,01/11/2017,125193,20.00,Revenue,Chorley BC Petty Cash,16301
Chorley Borough Council,http://statistics.data.gov.uk/id/local-authority/30UE,Central & Support Appointments,1009,Chief Executive,Refreshments,40036,Supplies and Services,,milk,01/11/2017,125193,1.98,Revenue,Chorley BC Petty Cash,16301
Chorley Borough Council,http://statistics.data.gov.uk/id/local-authority/30UE,Comprehensive I&E Statement,,Chief Executive,Community Develop Initiatives,40185,Miscellaneous Expenses,5034,materials,01/11/2017,125193,10.05,Revenue,Chorley BC Petty Cash,16301
Chorley Borough Council,http://statistics.data.gov.uk/id/local-authority/30UE,"Cultural, Environmental & Plan",,Chief Executive,Community Develop Initiatives,40185,Miscellaneous Expenses,5034,materials,01/11/2017,125193,9.17,Revenue,Chorley BC Petty Cash,16301
Chorley Borough Council,http://statistics.data.gov.uk/id/local-authority/30UE,"Cultural, Environmental & Plan",,Chief Executive,Community Develop Initiatives,40185,Miscellaneous Expenses,5034,materials,01/11/2017,125193,12.20,Revenue,Chorley BC Petty Cash,16301
Chorley Borough Council,http://statistics.data.gov.uk/id/local-authority/30UE,Civic Services,,Chief Executive,Tools & Equipment - Purchase,40003,Tools and Equipment,,cling film,01/11/2017,125193,0.88,Revenue,Chorley BC Petty Cash,16301
Chorley Borough Council,http://statistics.data.gov.uk/id/local-authority/30UE,Chorley Council,,Chief Executive,Refreshments,40036,Supplies and Services,,juice,01/11/2017,125193,3.33,Revenue,Chorley BC Petty Cash,16301
Chorley Borough Council,http://statistics.data.gov.uk/id/local-authority/30UE,Net Cost of Service,,Chief Executive,Tools & Equipment - Purchase,40003,Equipment,,tape,01/11/2017,125193,4.17,Revenue,Chorley BC Petty Cash,16301
Chorley Borough Council,http://statistics.data.gov.uk/id/local-authority/30UE,Vision,,Chief Executive,Travel & Subsistence - Staff,40115,Subsistence - Staff,,lunch,01/11/2017,125193,12.85,Revenue,Chorley BC Petty Cash,16301
Chorley Borough Council,http://statistics.data.gov.uk/id/local-authority/30UE,Comprehensive I&E Statement,,Chief Executive,Stationery,40050,Supplies and Services,,markers,01/11/2017,125193,2.62,Revenue,Chorley BC Petty Cash,16301
Chorley Borough Council,http://statistics.data.gov.uk/id/local-authority/30UE,Comprehensive I&E Statement,,Chief Executive,Tools & Equipment - Purchase,40003,Expenditure,,tape,01/11/2017,125193,6.99,Revenue,Chorley BC Petty Cash,16301
Chorley Borough Council,http://statistics.data.gov.uk/id/local-authority/30UE,Unapportionable Central OHeads,1009,Chief Executive,Refreshments,40036,Food,,milk,01/11/2017,125193,5.94,Revenue,Chorley BC Petty Cash,16301
Chorley Borough Council,http://statistics.data.gov.uk/id/local-authority/30UE,Group Director Service Group A,,Chief Executive,Refreshments,40036,Supplies and Services,,milk,01/11/2017,125193,1.60,Revenue,Chorley BC Petty Cash,16301
Chorley Borough Council,http://statistics.data.gov.uk/id/local-authority/30UE,Chief Executive,,Chief Executive,Refreshments,40036,Supplies and Services,,milk,01/11/2017,125193,0.99,Revenue,Chorley BC Petty Cash,16301
Chorley Borough Council,http://statistics.data.gov.uk/id/local-authority/30UE,Group Director Service Group A,,Chief Executive,Uniforms,40039,Uniforms,,shirts,01/11/2017,125193,10.00,Revenue,Chorley BC Petty Cash,16301
Chorley Borough Council,http://statistics.data.gov.uk/id/local-authority/30UE,Chorley Borough Council,,Chief Executive,Purchase of Tools or Equipment,40003,Supplies and Services,,bulbs,01/11/2017,125193,0.84,Revenue,Chorley BC Petty Cash,16301
Chorley Borough Council,http://statistics.data.gov.uk/id/local-authority/30UE,Central & Support Appointments,1009,Chief Executive,Refreshments,40036,Supplies and Services,,sugar,01/11/2017,125193,3.96,Revenue,Chorley BC Petty Cash,16301
Chorley Borough Council,http://statistics.data.gov.uk/id/local-authority/30UE,Chorley Council,,Chief Executive,Use Of Transport - Mayoral Car,30015,Expenditure,,car wash,01/11/2017,125193,5.00,Revenue,Chorley BC Petty Cash,16301
Chorley Borough Council,http://statistics.data.gov.uk/id/local-authority/30UE,Chorley Borough Council,,Chief Executive,Uniforms,40039,"Clothing, Uniforms and Laundry",,postage,01/11/2017,125193,8.80,Revenue,Chorley BC Petty Cash,16301
Chorley Borough Council,http://statistics.data.gov.uk/id/local-authority/30UE,CuDOSS Unit,,Chief Executive,Uniforms,40039,Uniforms,,postage,01/11/2017,125193,17.41,Revenue,Chorley BC Petty Cash,16301
Chorley Borough Council,http://statistics.data.gov.uk/id/local-authority/30UE,Governance,,Chief Executive,Refreshments,40036,Supplies and Services,,mikl,01/11/2017,125193,1.60,Revenue,Chorley BC Petty Cash,16301
Chorley Borough Council,http://statistics.data.gov.uk/id/local-authority/30UE,Transformation,,Policy & Governance,Other Contributions,40145,Expenditure,,donation,22/11/2017,125614,300.00,Revenue,Chorley Lions Club,77032
Chorley Borough Council,http://statistics.data.gov.uk/id/local-authority/30UE,Democratic Representation & Ma,,Policy & Governance,Processional Routes,40177,Expenditure,,Fee for playing in the Remembrance Sunday parade in Chorley on 12th November 2017.,22/11/2017,125597,400.00,Revenue,Chorley Pipe Band,21576
Chorley Borough Council,http://statistics.data.gov.uk/id/local-authority/30UE,Martin Walls,,Customer & Digital,Vehicle Maintenance,30045,Cash,,Supply 1 x budget tyre to RV14DVB as per your invoice 23331 dated 27/10/2017.,08/11/2017,125288,386.00,Revenue,Chorley Tyres,53719
Chorley Borough Council,http://statistics.data.gov.uk/id/local-authority/30UE,"Cultural, Environmental & Plan",,Policy & Governance,Core Funding Grants,40133,Expenditure,,2nd Instalment for 2017/18 contract,17/11/2017,125572,"7,500.00",Revenue,Chorley Womens Centre,17036
Chorley Borough Council,http://statistics.data.gov.uk/id/local-authority/30UE,Central and Support Services,,Policy & Governance,IT Software - Annual Licences,40101,Computing,,Purchase Card module and Technology Forge Interface annual licence support and maintenance 01/10/2017 to 31/03/2017,08/11/2017,125171,"2,000.00",Revenue,Civica UK Limited,17463
Chorley Borough Council,http://statistics.data.gov.uk/id/local-authority/30UE,General Fund Revenue Account,,Business Development & Growth,Contributions Parish Councils,40144,Expenditure,,cil receipt,01/11/2017,125093,"19,076.70",Revenue,Clayton-Le-Woods Parish Coun.,17024
Chorley Borough Council,http://statistics.data.gov.uk/id/local-authority/30UE,Public Space Services Unit,,Customer & Digital,Bus Shelters -Maintenance,20062,Expenditure,,"Supply & Erect a 2 bay cantilever bus shelter at Victoria Street, Wheelton, in accordance with your quote 19209/2017 ",15/11/2017,125465,"1,584.00",Revenue,Commutaports,56228
Chorley Borough Council,http://statistics.data.gov.uk/id/local-authority/30UE,Highways and Transport,,Customer & Digital,Bus Shelters -Maintenance,20062,Grounds Maintenance,,"Supply & Install 2 x Information Panels at Liverpool Rd, Bretherton, in accordance with your quote 19210/2017 dated 21/09/17",15/11/2017,125465,220.00,Revenue,Commutaports,56228
Chorley Borough Council,http://statistics.data.gov.uk/id/local-authority/30UE,Capital Fund,,Business Development & Growth,Main Contractor,3007,Other Subjective Codes,,Phase 1 - 6 of Yarrow Valley Footpath Works as set out in the Condition of Contract Documentation.,22/11/2017,125595,"10,301.78",Revenue,Conservation Contracts North West,20520
Chorley Borough Council,http://statistics.data.gov.uk/id/local-authority/30UE,Property Services,,Business Development & Growth,Planned Maintenance,20006,Net Expenditure or Balance,,Work required following fixed wire testing at various sites,15/11/2017,125375,476.50,Revenue,Corlett Electrical Eng Co Ltd,16271
Chorley Borough Council,http://statistics.data.gov.uk/id/local-authority/30UE,Non Distributed Costs,,Business Development & Growth,General Repairs - Reactive,20004,Building Repairs & Maintenance,,Blanket Order for reactive repairs WEF 1/4/17,15/11/2017,125380,267.23,Revenue,Corlett Electrical Eng Co Ltd,16271
Chorley Borough Council,http://statistics.data.gov.uk/id/local-authority/30UE,Capital,Capital,Business Development & Growth,Main Contractor,3007,Other,,Repair and replace lamps and fittings at Gillibrand st offices - renovation works,22/11/2017,125481,391.72,Capital,Corlett Electrical Eng Co Ltd,16271
Chorley Borough Council,http://statistics.data.gov.uk/id/local-authority/30UE,Central and Support Apportiona,,Business Development & Growth,General Subscriptions,40146,Supplies and Services,,Annual subscription of online property valuations resource,15/11/2017,125238,"3,180.00",Revenue,CoStar UK Limited,67985
Chorley Borough Council,http://statistics.data.gov.uk/id/local-authority/30UE,Transformation,,Customer & Digital,Computer Equipment-Maintenance,40105,Expenditure,,Support Contract Renewal up until 31/03/2019 Fujitsu fi-6670 (Serial No. AA7AA00122) 483.00 The contract is based on,29/11/2017,124942,483.00,Revenue,CSG Limited,65095
Chorley Borough Council,http://statistics.data.gov.uk/id/local-authority/30UE,ICT,,Customer & Digital,Computer Equipment-Maintenance,40105,Expenditure,,Support contract renewal until 31/03/2019 Fujitsu fi-6770 (Serial No. AACAA00902) 696.50 The contract is based on 8+8+PM,29/11/2017,124942,696.50,Revenue,CSG Limited,65095
Chorley Borough Council,http://statistics.data.gov.uk/id/local-authority/30UE,General Fund Revenue Account,,Early Intervention,Legal Fees,40171,Expenditure,,"Court attendance for NAME REDACTED appeal at Preston2 days at 400 per day plus expenses, recovered as costs of the case",29/11/2017,125856,800.00,Revenue,Culleton Brown Ltd,77013
Chorley Borough Council,http://statistics.data.gov.uk/id/local-authority/30UE,Vision,,Customer & Digital,Miscellaneous Expenses,40200,Supplies and Services,,3x HP OfficeJet AIO Pro 8710 Printer - @ 95.00 each,01/11/2017,125084,285.00,Revenue,DAC Technology Ltd,76398
Chorley Borough Council,http://statistics.data.gov.uk/id/local-authority/30UE,Comprehensive I&E Statement,,Customer & Digital,Miscellaneous Expenses,40200,Supplies and Services,,3x Black Toner for HP officejet pro 8710 printer - @ 18.00 each,01/11/2017,125084,54.00,Revenue,DAC Technology Ltd,76398
Chorley Borough Council,http://statistics.data.gov.uk/id/local-authority/30UE,Performing Organisation,,Customer & Digital,Miscellaneous Expenses,40200,Supplies and Services,,3x yellow Toner for HP officejet pro 8710 printer - @ 18.00 each,01/11/2017,125084,54.00,Revenue,DAC Technology Ltd,76398
Chorley Borough Council,http://statistics.data.gov.uk/id/local-authority/30UE,Vision,,Customer & Digital,Miscellaneous Expenses,40200,Supplies and Services,,3x magenta Toner for HP officejet pro 8710 printer - @ 18.00 each,01/11/2017,125084,54.00,Revenue,DAC Technology Ltd,76398
Chorley Borough Council,http://statistics.data.gov.uk/id/local-authority/30UE,Policy and Performance,,Customer & Digital,Miscellaneous Expenses,40200,Supplies and Services,,3x cyan Toner for HP officejet pro 8710 printer - @ 18.00 each,01/11/2017,125084,54.00,Revenue,DAC Technology Ltd,76398
Chorley Borough Council,http://statistics.data.gov.uk/id/local-authority/30UE,Budget Holder Control Code,,Customer & Digital,Computer Equipment-Maintenance,40105,Expenditure,,1 x Oki C911dn toner cartridge YELLOW,29/11/2017,125085,189.00,Revenue,DAC Technology Ltd,76398
Chorley Borough Council,http://statistics.data.gov.uk/id/local-authority/30UE,ICT,,Customer & Digital,Computer Equipment-Maintenance,40105,Expenditure,,1 x Oki C911dn toner cartridge MAGENTA,29/11/2017,125085,189.00,Revenue,DAC Technology Ltd,76398
Chorley Borough Council,http://statistics.data.gov.uk/id/local-authority/30UE,Use or E R and Gen Bal,,Business Development & Growth,Contributions Parish Councils,40144,Cash,,cil receipt,01/11/2017,125094,"15,455.45",Revenue,Eccleston Parish Council,17027
Chorley Borough Council,http://statistics.data.gov.uk/id/local-authority/30UE,ICT,,Customer & Digital,Mobile Voice and Data,40086,Telephones,,sept charges,03/11/2017,124683,467.74,Revenue,EE - Orange,16486
Chorley Borough Council,http://statistics.data.gov.uk/id/local-authority/30UE,Non Distributed Costs,,Customer & Digital,Mobile Voice and Data,40086,Telephones,,Oct-17,29/11/2017,125406,472.72,Revenue,EE - Orange,16486
Chorley Borough Council,http://statistics.data.gov.uk/id/local-authority/30UE,Employment Skills & Business,,Business Development & Growth,Grants To Other Organisations,40127,Cash,,grant,01/11/2017,125069,250.00,Revenue,NAME REDACTED,77000
Chorley Borough Council,http://statistics.data.gov.uk/id/local-authority/30UE,Other G F  H I P  Schemes,,Business Development & Growth,Main Contractor,3007,Capital Expenditure,,Primrose gardens Valuation Statements,15/11/2017,125331,"358,005.29",Revenue,Eric Wright Construction Ltd,76464
Chorley Borough Council,http://statistics.data.gov.uk/id/local-authority/30UE,Capital Expenditure,Capital,Business Development & Growth,Main Contractor,3007,Other,,Delivery of the Pre-Construction Services Agreement and subsequent works in relation to the Market Walk Extension,22/11/2017,125678,"438,169.06",Capital,Eric Wright Construction Ltd,76464
Chorley Borough Council,http://statistics.data.gov.uk/id/local-authority/30UE,Human Resources & Org Develpmt,,Policy & Governance,HR Approved Training Expenses,17001,Cash,,October Coaching Sessions and October Coaching Tools for Managers workshop,29/11/2017,125829,"1,268.40",Revenue,Evolving Edge Ltd,76455
Chorley Borough Council,http://statistics.data.gov.uk/id/local-authority/30UE,Transformation,,Policy & Governance,HR Approved Training Expenses,17001,Cash,,October Staff Coaching Sessions,29/11/2017,125854,900.00,Revenue,Evolving Edge Ltd,76455
Chorley Borough Council,http://statistics.data.gov.uk/id/local-authority/30UE,Streetscene Delivery Teams,,Customer & Digital,Supplies-Grounds Maintenance,40025,Cash,,Please supply the following parts: SC-295673220 BLADE [LB553S] x 10,24/11/2017,125132,503.23,Revenue,F R Sharrock Ltd,18091
Chorley Borough Council,http://statistics.data.gov.uk/id/local-authority/30UE,Comprehensive I&E Statement,,Customer & Digital,Hire Of Vehicles and Plant,30028,Net Expenditure or Balance,,Extension of hire for the tractor and flail 29/09/17 to 03/11/17,24/11/2017,125132,"1,136.61",Revenue,F R Sharrock Ltd,18091
Chorley Borough Council,http://statistics.data.gov.uk/id/local-authority/30UE,Vision,,Customer & Digital,Vehicle Maintenance,30045,Vehicle Repairs & Maintenance,,Repairs to linkage and operation controls on front loader on Kubota tractor Reg PO14BFX,08/11/2017,125219,378.31,Revenue,F R Sharrock Ltd,18091
Chorley Borough Council,http://statistics.data.gov.uk/id/local-authority/30UE,People & Places,,Customer & Digital,Supplies-Grounds Maintenance,40025,Expenditure,,Please supply machine spare parts as per your Performa No 124630 dated 30/10/2017: Crankshaft Kit,10/11/2017,125332,570.00,Revenue,F R Sharrock Ltd,18091
Chorley Borough Council,http://statistics.data.gov.uk/id/local-authority/30UE,Chorley Borough Council,,Customer & Digital,Supplies-Grounds Maintenance,40025,Materials & Supplies,,Please supply machine spare parts as per your Performa No 124630 dated 30/10/2017: Gasket,10/11/2017,125332,4.38,Revenue,F R Sharrock Ltd,18091
Chorley Borough Council,http://statistics.data.gov.uk/id/local-authority/30UE,Street Environment,,Customer & Digital,Supplies-Grounds Maintenance,40025,Materials & Supplies,,Please supply machine spare parts as per your Performa No 124630 dated 30/10/2017: Diaphragm,10/11/2017,125332,21.20,Revenue,F R Sharrock Ltd,18091
Chorley Borough Council,http://statistics.data.gov.uk/id/local-authority/30UE,Streetscene Delivery Teams,,Customer & Digital,Supplies-Grounds Maintenance,40025,Materials & Supplies,,Please supply machine spare parts as per your Performa No 124630 dated 30/10/2017: Grommet,10/11/2017,125332,0.63,Revenue,F R Sharrock Ltd,18091
Chorley Borough Council,http://statistics.data.gov.uk/id/local-authority/30UE,Character and Feel,,Customer & Digital,Supplies-Grounds Maintenance,40025,Materials & Supplies,,Please supply machine spare parts as per your Performa No 124630 dated 30/10/2017: Link Choke,10/11/2017,125332,1.59,Revenue,F R Sharrock Ltd,18091
Chorley Borough Council,http://statistics.data.gov.uk/id/local-authority/30UE,Income and Expenditure Account,,Customer & Digital,Supplies-Grounds Maintenance,40025,Materials & Supplies,,Please supply machine spare parts as per your Performa No 124630 dated 30/10/2017: Wheel Bearing,10/11/2017,125332,80.00,Revenue,F R Sharrock Ltd,18091
Chorley Borough Council,http://statistics.data.gov.uk/id/local-authority/30UE,Customer & Digital,,Customer & Digital,Supplies-Grounds Maintenance,40025,Materials & Supplies,,Please supply machine spare parts as per your Performa No 124630 dated 30/10/2017: Brake Switch,10/11/2017,125332,21.25,Revenue,F R Sharrock Ltd,18091
Chorley Borough Council,http://statistics.data.gov.uk/id/local-authority/30UE,Streetscene Delivery Teams,,Customer & Digital,Supplies-Grounds Maintenance,40025,Materials & Supplies,,Please supply machine spare parts as per your Performa No 124630 dated 30/10/2017: Air Filter Element,10/11/2017,125332,22.19,Revenue,F R Sharrock Ltd,18091
Chorley Borough Council,http://statistics.data.gov.uk/id/local-authority/30UE,Streetscene Delivery Teams,,Customer & Digital,Supplies-Grounds Maintenance,40025,Materials & Supplies,,Please supply machine spare parts as per your Performa No 124630 dated 30/10/2017: Heat Shield,10/11/2017,125332,137.30,Revenue,F R Sharrock Ltd,18091
Chorley Borough Council,http://statistics.data.gov.uk/id/local-authority/30UE,Chorley Borough Council,,Customer & Digital,Supplies-Grounds Maintenance,40025,Cash,,Please supply machine spare parts as per your Performa No 124630 dated 30/10/2017: Blade adaptor boss,10/11/2017,125332,38.78,Revenue,F R Sharrock Ltd,18091
Chorley Borough Council,http://statistics.data.gov.uk/id/local-authority/30UE,Martin Walls,,Customer & Digital,Supplies-Grounds Maintenance,40025,Cash,,Please supply machine spare parts as per your Performa No 124630 dated 30/10/2017: Blade support hub,10/11/2017,125332,52.42,Revenue,F R Sharrock Ltd,18091
Chorley Borough Council,http://statistics.data.gov.uk/id/local-authority/30UE,Streetscene Delivery Teams,,Customer & Digital,Supplies-Grounds Maintenance,40025,Cash,,Please supply machine spare parts as per your Performa No 124630 dated 30/10/2017: GCV 160E Husq,10/11/2017,125332,275.00,Revenue,F R Sharrock Ltd,18091
Chorley Borough Council,http://statistics.data.gov.uk/id/local-authority/30UE,Waste & Streetscene Services,,Customer & Digital,Hire Of Vehicles and Plant,30028,Net Expenditure or Balance,,extension of hire for the tractor and flail from 03/11/17 to 22/12/17,29/11/2017,125754,"1,416.23",Revenue,F R Sharrock Ltd,18091
Chorley Borough Council,http://statistics.data.gov.uk/id/local-authority/30UE,Streetscene & Leisure Contract,,Customer & Digital,Tools & Equipment - Maintenance,40005,Supplies and Services,,On-site wheeled bin refurbishments (1100L bins) at Veolia depot,15/11/2017,124888,632.50,Revenue,Fairport Containers Ltd,17735
Chorley Borough Council,http://statistics.data.gov.uk/id/local-authority/30UE,Mgnt & Support Services,,Customer & Digital,Consultants` Fees,40077,Expenditure,,Annual IT Health Check / Penetration Test for renewal of PSN certification 2018/2019. Work to be carried out w/c 6th November,29/11/2017,125677,"3,750.00",Revenue,Fidus Information Security,76955
Chorley Borough Council,http://statistics.data.gov.uk/id/local-authority/30UE,Budget Holder Control Code,,Early Intervention,Children's Activities,40188,Campaign & Initiative Expenses,,"RUAG Transport -  16 seat mini bus, Astley CC to Smithills return. 21.10.2017 16 seat mini bus, Astley CC to LEGOLAND",22/11/2017,125568,260.00,Revenue,Finleys Minibus Hire,72082
Chorley Borough Council,http://statistics.data.gov.uk/id/local-authority/30UE,General Fund Revenue Account,,Early Intervention,Miscellaneous Expenses,40200,Supplies and Services,,boiler replacement,22/11/2017,125615,"1,762.00",Revenue,Firefly Energi Ltd,69925
Chorley Borough Council,http://statistics.data.gov.uk/id/local-authority/30UE,Streetscene,,Policy & Governance,Legal Fees,40171,Miscellaneous Expenses,5034,"Payment of professional fees relating to the landslip claim at 91/92 The Cedars, Chorley - 4.5 hours at 150.00",15/11/2017,125334,675.00,Revenue,Forbes Solicitors,17527
Chorley Borough Council,http://statistics.data.gov.uk/id/local-authority/30UE,Business,,Business Development & Growth,Professional Fees,40063,Expenditure,,Delivery of Architectural/QS services for design of the Chorley Locality Hub project,17/11/2017,125579,"2,150.00",Revenue,Frank Whittle Partnership Limited,76928
Chorley Borough Council,http://statistics.data.gov.uk/id/local-authority/30UE,Chorley Borough Council,,Early Intervention,Furniture - Purchase,40012,Supplies and Services,,"York 3 Drawer Chest, Large - Beech",29/11/2017,125862,273.68,Revenue,Furniture Resource Centre Ltd,22085
Chorley Borough Council,http://statistics.data.gov.uk/id/local-authority/30UE,Leisure and Cultural Services,,Policy & Governance,General Subscriptions,40146,Subscriptions,,Priority user subscription to Harwell Documentation Restoration Services. December 2017 - November 2018. 300.00,29/11/2017,125748,250.00,Revenue,Harwell Drying & Restoration Services,18416
Chorley Borough Council,http://statistics.data.gov.uk/id/local-authority/30UE,Streetscene Delivery Teams,,Customer & Digital,Supplies-Grounds Maintenance,40025,Expenditure,,Two pallets of Multi-purpose compost,24/11/2017,125743,370.00,Revenue,Henry Alty Limited,22048
Chorley Borough Council,http://statistics.data.gov.uk/id/local-authority/30UE,Central and Support Services,,Policy & Governance,Asset Maintenance Fund,20012,Building Repairs & Maintenance,,Redecoration of the civic and Democratic Services offices by Nightingales and sons for 587 the weekend  28th and 29th Oct 17,03/11/2017,125239,587.00,Revenue,Henry Nightingale & Son,17923
Chorley Borough Council,http://statistics.data.gov.uk/id/local-authority/30UE,Capital,Capital,Business Development & Growth,Consultants Fees,3025,Other,,For provision of project management/employers agent services in accordance with tender dated 30.9.2016.,08/11/2017,125294,"2,075.00",Capital,Identity Consult Ltd,76426
Chorley Borough Council,http://statistics.data.gov.uk/id/local-authority/30UE,Legal Services Unit,,Policy & Governance,General Subscriptions,40146,Expenditure,,Iken annual licence fee for 12 months to 30th September 2018,10/11/2017,125335,"2,619.96",Revenue,Iken Business Limited,22068
Chorley Borough Council,http://statistics.data.gov.uk/id/local-authority/30UE,Recharges within central servi,,Customer & Digital,General Subscriptions,40146,Subscriptions,,Inetwork membership April 2017 - March 2018 for NAME REDACTED,01/11/2017,124955,"1,600.00",Revenue,iNetwork (Tameside Council),19554
Chorley Borough Council,http://statistics.data.gov.uk/id/local-authority/30UE,Chorley Borough Council,,Early Intervention,Miscellaneous Expenses,40200,Supplies and Services,,Ref NAME & ADDRESS REDACTED To strip out existing bathroom Renew floor boards Refix new suite Patch plaster walls ,10/11/2017,125214,330.00,Revenue,NAME REDACTED,76916
Chorley Borough Council,http://statistics.data.gov.uk/id/local-authority/30UE,Chorley Borough Council,,Business Development & Growth,Refuse Collection,20037,Premises Related Expenses,,Waste Compactor Rental Services @ 270.0 per month April 17 - March 18,10/11/2017,125215,270.00,Revenue,J&H Rentals Limited,70699
Chorley Borough Council,http://statistics.data.gov.uk/id/local-authority/30UE,Human Resource Unit,,Policy & Governance,HR Recruitment - Advertising,15300,Indirect Expenses,,Adverts,10/11/2017,125365,"2,000.00",Revenue,JGP Resourcing Ltd,50012
Chorley Borough Council,http://statistics.data.gov.uk/id/local-authority/30UE,Drainage,,Customer & Digital,Other Contributions,40145,Contributions,,paws n claws,03/11/2017,125229,"4,706.00",Revenue,NAME REDACTED,77022
Chorley Borough Council,http://statistics.data.gov.uk/id/local-authority/30UE,Streetscene & Leisure Contract,,Customer & Digital,Other Contributions,40145,Contributions,,ADDRESS REDACTED,08/11/2017,125345,"4,706.00",Revenue,NAME REDACTED,73956
Chorley Borough Council,http://statistics.data.gov.uk/id/local-authority/30UE,Comprehensive I&E Statement,,Customer & Digital,Supplies-Grounds Maintenance,40025,Supplies for Stores,,200 feather edge boards @ 2m long,22/11/2017,125316,198.00,Revenue,John H Mayor & Sons Ltd,16635
Chorley Borough Council,http://statistics.data.gov.uk/id/local-authority/30UE,D Walmsley A Bothamley,,Customer & Digital,Supplies-Grounds Maintenance,40025,Supplies for Stores,,2.5kg of 50mm ringshank nails,22/11/2017,125316,7.51,Revenue,John H Mayor & Sons Ltd,16635
Chorley Borough Council,http://statistics.data.gov.uk/id/local-authority/30UE,Highways & Transport Services,107,Customer & Digital,Supplies-Grounds Maintenance,40025,Cash,,20 @ 3.6m x 100mm x 38mm green timber,22/11/2017,125316,71.20,Revenue,John H Mayor & Sons Ltd,16635
Chorley Borough Council,http://statistics.data.gov.uk/id/local-authority/30UE,Streetscene & Leisure Contract,,Customer & Digital,Other Contributions,40145,Contributions,,ADDRESS REDACTED,08/11/2017,125309,"5,000.00",Revenue,NAME REDACTED,48985
Chorley Borough Council,http://statistics.data.gov.uk/id/local-authority/30UE,Legal Services,,Policy & Governance,Statutory Notices,40160,Supplies and Services,,Public notice to be advertised in the Chorley Guardian on the 31 October 2017 for the confirmation of Footpath Diversion,08/11/2017,125198,288.42,Revenue,Johnston Publishing Ltd,20072
Chorley Borough Council,http://statistics.data.gov.uk/id/local-authority/30UE,Planning Services Unit,,Customer & Digital,Statutory Notices,40160,Miscellaneous Expenses,,Planning Public Notices to appear in the Chorley Guardian April 2017 to March 2018,22/11/2017,125201,340.86,Revenue,Johnston Publishing Ltd,20072
Chorley Borough Council,http://statistics.data.gov.uk/id/local-authority/30UE,Streetscene Delivery Teams,,Customer & Digital,Vehicle Maintenance,30045,Cash,,"Complete vehicle service, fault diagnosis and repairs to RV14 DVB as per your order number 8218580 dated 30/10/2017.  Service",08/11/2017,125283,"3,116.41",Revenue,Johnston Sweepers Limited,20778
Chorley Borough Council,http://statistics.data.gov.uk/id/local-authority/30UE,Employment Skills & Business,,Business Development & Growth,Grants To Other Organisations,40127,Cash,,sib grant,24/11/2017,125733,250.00,Revenue,NAME REDACTED,77060
Chorley Borough Council,http://statistics.data.gov.uk/id/local-authority/30UE,Housing Investment Programme,,Early Intervention,Grants,3002,Other Funds and Balance Sheet,,ADDRESS REDACTED,08/11/2017,125244,"3,840.00",Revenue,K Berry Ltd,16421
Chorley Borough Council,http://statistics.data.gov.uk/id/local-authority/30UE,General Fund HIP Schemes,,Early Intervention,Grants,3002,Other,,ADDRESS REDACTED,10/11/2017,125245,"3,392.50",Revenue,K Berry Ltd,16421
Chorley Borough Council,http://statistics.data.gov.uk/id/local-authority/30UE,Capital,,Early Intervention,Grants,3002,Other,,ADDRESS REDACTED,08/11/2017,125246,"1,570.00",Revenue,K Berry Ltd,16421
Chorley Borough Council,http://statistics.data.gov.uk/id/local-authority/30UE,Disabled Facilities Grants,,Early Intervention,Grants,3002,Net Expenditure,,ADDRESS REDACTED,29/11/2017,125791,"3,217.50",Revenue,K Berry Ltd,16421
Chorley Borough Council,http://statistics.data.gov.uk/id/local-authority/30UE,Martin Walls,,Customer & Digital,Other Contributions,40145,Contributions,,ADDRESS REDACTED,01/11/2017,125096,"2,942.40",Revenue,NAME REDACTED,76997
Chorley Borough Council,http://statistics.data.gov.uk/id/local-authority/30UE,Comprehensive I&E Statement,,Customer & Digital,Grant Of Right Of Burial Fees,60077,Fees and Charges,,burial refund,15/11/2017,125467,927.00,Revenue,NAME REDACTED,77005
Chorley Borough Council,http://statistics.data.gov.uk/id/local-authority/30UE,Environment,,Early Intervention,Children's Activities,40188,Miscellaneous Expenses,5034,Children`s Summer Camp - Taekwondo x 3 days,10/11/2017,125397,300.00,Revenue,Kicks Taekwondo,76583
Chorley Borough Council,http://statistics.data.gov.uk/id/local-authority/30UE,Character and Feel,,Early Intervention,Pest Control,20039,Cleaning and Domestic Supplies,,"Ficam W HSE S390 - FIC WW 1015 x 12 (178.38) Contrak All Weather Blox BPR UK 2015 Contra 008K x 3 (155.40) Ratimor ",10/11/2017,125336,608.79,Revenue,Killgerm Chemicals Ltd,16879
Chorley Borough Council,http://statistics.data.gov.uk/id/local-authority/30UE,Control  Holding and Suspense,,Policy & Governance,General Balances,100,Other,,sal ded,22/11/2017,125605,"1,163.40",Revenue,Labour Councillors Association,17577
Chorley Borough Council,http://statistics.data.gov.uk/id/local-authority/30UE,General Fund Revenue Account,,Customer & Digital,Purchase of Tools or Equipment,40003,Net Expenditure,,Service Level Agreement 2017 - 2018,22/11/2017,125631,843.75,Revenue,Lancashire Archaeological Advisory Services,75761
Chorley Borough Council,http://statistics.data.gov.uk/id/local-authority/30UE,Housing Investment Programme,,Early Intervention,Grants,3002,Other,,ADDRESS REDACTED,08/11/2017,125247,"8,943.00",Revenue,Lancashire County Council,17758
Chorley Borough Council,http://statistics.data.gov.uk/id/local-authority/30UE,Disabled Facilities Grants,,Early Intervention,Grants,3002,Other,,ADDRESS REDACTED,08/11/2017,125248,"2,949.00",Revenue,Lancashire County Council,17758
Chorley Borough Council,http://statistics.data.gov.uk/id/local-authority/30UE,Housing Investment Programme,,Early Intervention,Grants,3002,Capital Fund Subjectives,,ADDRESS REDACTED,08/11/2017,125249,"5,209.00",Revenue,Lancashire County Council,17758
Chorley Borough Council,http://statistics.data.gov.uk/id/local-authority/30UE,Disabled Facilities Grants,,Early Intervention,Grants,3002,Net Expenditure,,ADDRESS REDACTED,10/11/2017,125399,"1,954.00",Revenue,Lancashire County Council,17758
Chorley Borough Council,http://statistics.data.gov.uk/id/local-authority/30UE,Business Management,,Business Development & Growth,Exhibitions & Special Events,40158,Advertising and Publicity,,Installation and removal of Summertime bunting as discussed with NAME REDACTED. Installation prior to 21st July and removal,24/11/2017,125659,"2,538.99",Revenue,Lancashire County Council,20027
Chorley Borough Council,http://statistics.data.gov.uk/id/local-authority/30UE,Housing Investment Programme,,Early Intervention,Grants,3002,Net Expenditure,,ADDRESS REDACTED,29/11/2017,125787,"3,450.00",Revenue,Lancashire County Council,17758
Chorley Borough Council,http://statistics.data.gov.uk/id/local-authority/30UE,General Fund HIP Schemes,,Early Intervention,Grants,3002,Net Expenditure,,ADDRESS REDACTED,29/11/2017,125788,"6,889.00",Revenue,Lancashire County Council,17758
Chorley Borough Council,http://statistics.data.gov.uk/id/local-authority/30UE,Housing Investment Programme,,Early Intervention,Grants,3002,Net Expenditure,,ADDRESS REDACTED,29/11/2017,125789,"6,034.00",Revenue,Lancashire County Council,17758
Chorley Borough Council,http://statistics.data.gov.uk/id/local-authority/30UE,Capital Fund,,Early Intervention,Grants,3002,Net Expenditure,,ADDRESS REDACTED,29/11/2017,125790,"1,889.96",Revenue,Lancashire County Council,17758
Chorley Borough Council,http://statistics.data.gov.uk/id/local-authority/30UE,Policy and Performance,,Policy & Governance,Other Fees,40212,Miscellaneous Fees,,4 Weekly Payment,03/11/2017,125195,919.29,Revenue,Lancashire Fayre,62967
Chorley Borough Council,http://statistics.data.gov.uk/id/local-authority/30UE,Transformation,,Policy & Governance,Service Fees,40056,Service Fees,,Wellbeing Coach sessions for NAME REDACTED,29/11/2017,125463,400.00,Revenue,Lancashire Mind Ltd,18578
Chorley Borough Council,http://statistics.data.gov.uk/id/local-authority/30UE,Comprehensive I&E Statement,,Customer & Digital,Clinical Waste Collection,50007,Private Contractors,,"Disposal of clinical waste from Chorley household. April 2017 to March 2018.   Yellow bag collections, approx. 550 per  month.",08/11/2017,125240,737.77,Revenue,Lancashire Teaching Hospitals NHS FT,19003
Chorley Borough Council,http://statistics.data.gov.uk/id/local-authority/30UE,Group Director Service Group A,,Customer & Digital,Clinical Waste Collection,50007,Third Party Payments,,"Disposal of clinical waste from Chorley household. April 2017 to March 2018.  Yellow bag collections, approx. 550 per month.",29/11/2017,125608,884.07,Revenue,Lancashire Teaching Hospitals NHS FT,19003
Chorley Borough Council,http://statistics.data.gov.uk/id/local-authority/30UE,Planning Services Units,,Policy & Governance,Legal Fees,40171,Miscellaneous Expenses,5034,"Counsel`s fees (NAME REDACTED) for advising in conference, opinion, further advice & reviewing draft rebuttals as well ",08/11/2017,125161,"19,248.65",Revenue,Landmark Chambers,56730
Chorley Borough Council,http://statistics.data.gov.uk/id/local-authority/30UE,General Fund Revenue Account,,Policy & Governance,Car Leasing Payment,14100,Employees,,NAME REDACTED,22/11/2017,125287,257.60,Revenue,LeasePlan UK Ltd T/A Automotive Leasing,65197
Chorley Borough Council,http://statistics.data.gov.uk/id/local-authority/30UE,Partnerships Planning & Policy,,Policy & Governance,Car Leasing Payment,14100,Employees,,Car Lease,22/11/2017,125287,25.07,Revenue,LeasePlan UK Ltd T/A Automotive Leasing,65197
Chorley Borough Council,http://statistics.data.gov.uk/id/local-authority/30UE,Control  Holding and Suspense,,Policy & Governance,Manual Control Account,1,Other Funds and Balance Sheet,,,22/11/2017,125287,-25.07,Revenue,LeasePlan UK Ltd T/A Automotive Leasing,65197
Chorley Borough Council,http://statistics.data.gov.uk/id/local-authority/30UE,People,,Customer & Digital,Professional Fees,14011,Employee Allowances,,Capacity Grid Business Rates Review Sep 17,01/11/2017,124476,"1,727.00",Revenue,Liberata (Capacity Grid),67989
Chorley Borough Council,http://statistics.data.gov.uk/id/local-authority/30UE,Customer Transformation,,Customer & Digital,Professional Fees,14011,Employee Allowances,,Capacity Business rates review Oct 17,01/11/2017,125051,"1,200.00",Revenue,Liberata (Capacity Grid),67989
Chorley Borough Council,http://statistics.data.gov.uk/id/local-authority/30UE,General Fund Revenue Account,,Policy & Governance,Service Fees,40056,Service Fees,,DVLA Electronic Fee and Driver Management Fee,10/11/2017,125371,737.30,Revenue,Licence Bureau Limited,71233
Chorley Borough Council,http://statistics.data.gov.uk/id/local-authority/30UE,Cultural & Related Services,,Policy & Governance,Exhibitions & Special Events,40158,Supplies and Services,,As per quote no: LA11546. Lighting equipment and delivery for Dracula performances at Astley Hall.,10/11/2017,125312,"1,500.00",Revenue,Lite Alternative,76993
Chorley Borough Council,http://statistics.data.gov.uk/id/local-authority/30UE,Chorley Borough Council,,Policy & Governance,Grants To Other Organisations,40127,Expenditure,,grant,29/11/2017,125798,250.00,Revenue,NAME REDACTED,60925
Chorley Borough Council,http://statistics.data.gov.uk/id/local-authority/30UE,Democratic Services,,Chief Executive,Stationery,40050,Expenditure,,Lyreco Punches Pockets (Top opening),01/11/2017,125158,58.88,Revenue,Lyreco UK Ltd,17623
Chorley Borough Council,http://statistics.data.gov.uk/id/local-authority/30UE,CuDOSS Unit,,Chief Executive,Stationery,40050,Stationery,,MICRON ballpoint black stick pens 0.7mm,01/11/2017,125158,1.50,Revenue,Lyreco UK Ltd,17623
Chorley Borough Council,http://statistics.data.gov.uk/id/local-authority/30UE,Chorley Borough Council,,Chief Executive,Stationery,40050,Stationery,,Lyreco Punches Pockets (Top opening),01/11/2017,125158,2.70,Revenue,Lyreco UK Ltd,17623
Chorley Borough Council,http://statistics.data.gov.uk/id/local-authority/30UE,CuDOSS Unit,,Chief Executive,Stationery,40050,Stationery,,Assrtd Subject dividers - 12 part,01/11/2017,125158,4.60,Revenue,Lyreco UK Ltd,17623
Chorley Borough Council,http://statistics.data.gov.uk/id/local-authority/30UE,Chorley Borough Council,,Chief Executive,Stationery,40050,Stationery,,Lyreco Yellow sticky notes pkt  of 12 125 -7,01/11/2017,125158,0.84,Revenue,Lyreco UK Ltd,17623
Chorley Borough Council,http://statistics.data.gov.uk/id/local-authority/30UE,Office Accommodation,,Chief Executive,Stationery,40050,Expenditure,,Gel Mouse Pad,01/11/2017,125158,13.61,Revenue,Lyreco UK Ltd,17623
Chorley Borough Council,http://statistics.data.gov.uk/id/local-authority/30UE,CuDOSS Unit,,Chief Executive,Stationery,40050,Stationery,,Lyreco Budget PP Pack Tape (pack 6),01/11/2017,125158,1.18,Revenue,Lyreco UK Ltd,17623
Chorley Borough Council,http://statistics.data.gov.uk/id/local-authority/30UE,General Fund Revenue Account,,Chief Executive,Stationery,40050,Supplies and Services,,MICRON ballpoint black stick pens 0.7mm,01/11/2017,125158,1.50,Revenue,Lyreco UK Ltd,17623
Chorley Borough Council,http://statistics.data.gov.uk/id/local-authority/30UE,Chorley Borough Council,,Chief Executive,Stationery,40050,Supplies and Services,,LYRECO tape dispenser,01/11/2017,125158,2.02,Revenue,Lyreco UK Ltd,17623
Chorley Borough Council,http://statistics.data.gov.uk/id/local-authority/30UE,Deputy Chief Executive,,Chief Executive,Stationery,40050,Supplies and Services,,Lyreco budget clear tape 19mmx33mm (pack of 8),01/11/2017,125158,4.16,Revenue,Lyreco UK Ltd,17623
Chorley Borough Council,http://statistics.data.gov.uk/id/local-authority/30UE,General Fund Revenue Account,,Chief Executive,Stationery,40050,Stationery,,Scissors Maped,01/11/2017,125158,18.30,Revenue,Lyreco UK Ltd,17623
Chorley Borough Council,http://statistics.data.gov.uk/id/local-authority/30UE,Chorley Borough Council,,Chief Executive,Stationery,40050,Stationery,,LYRECO CD-R 700MB/80MIN - SPINDLE OF 50,01/11/2017,125158,34.34,Revenue,Lyreco UK Ltd,17623
Chorley Borough Council,http://statistics.data.gov.uk/id/local-authority/30UE,Chorley Borough Council,,Chief Executive,Stationery,40050,Stationery,,VERBATIM DVD-R PRINTABLE 4.GB 1X-16X - SPINDLE OF 25,01/11/2017,125158,34.32,Revenue,Lyreco UK Ltd,17623
Chorley Borough Council,http://statistics.data.gov.uk/id/local-authority/30UE,General Fund Revenue Account,,Chief Executive,Stationery,40050,Stationery,,LYRECO  I/JET CART COMP HP339 C8767 BLK,01/11/2017,125158,26.48,Revenue,Lyreco UK Ltd,17623
Chorley Borough Council,http://statistics.data.gov.uk/id/local-authority/30UE,Revenue Outturn,,Chief Executive,Stationery,40050,Expenditure,,LYRECO  I/JET CART COMP HP344 C9363 3COL,01/11/2017,125158,14.13,Revenue,Lyreco UK Ltd,17623
Chorley Borough Council,http://statistics.data.gov.uk/id/local-authority/30UE,General Fund Revenue Account,,Chief Executive,Stationery,40050,Stationery,,CEP Wall Rack in black,01/11/2017,125158,9.25,Revenue,Lyreco UK Ltd,17623
Chorley Borough Council,http://statistics.data.gov.uk/id/local-authority/30UE,General Fund Revenue Account,,Chief Executive,Stationery,40050,Stationery,,Lyreco Punches Pockets (Top opening),01/11/2017,125158,29.44,Revenue,Lyreco UK Ltd,17623
Chorley Borough Council,http://statistics.data.gov.uk/id/local-authority/30UE,Corporate  Democratic Core,,Chief Executive,Stationery,40050,Stationery,,A4 twinwire manuscript books,01/11/2017,125158,8.45,Revenue,Lyreco UK Ltd,17623
Chorley Borough Council,http://statistics.data.gov.uk/id/local-authority/30UE,Comprehensive I&E Statement,,Chief Executive,Stationery,40050,Stationery,,Correction Roller,01/11/2017,125158,0.69,Revenue,Lyreco UK Ltd,17623
Chorley Borough Council,http://statistics.data.gov.uk/id/local-authority/30UE,Finance Unit Management,,Chief Executive,Stationery,40050,Stationery,,Impega document wallets green box of 50,01/11/2017,125158,12.00,Revenue,Lyreco UK Ltd,17623
Chorley Borough Council,http://statistics.data.gov.uk/id/local-authority/30UE,DELETE,1009,Chief Executive,Stationery,40050,Stationery,,Treasury Tags - 51mm,01/11/2017,125158,2.61,Revenue,Lyreco UK Ltd,17623
Chorley Borough Council,http://statistics.data.gov.uk/id/local-authority/30UE,General Fund Revenue Account,,Policy & Governance,Stationery,40050,"Printing, Stationery and Gener",,Micron Stick Ball Point,01/11/2017,125159,3.00,Revenue,Lyreco UK Ltd,17623
Chorley Borough Council,http://statistics.data.gov.uk/id/local-authority/30UE,General Fund Revenue Account,,Policy & Governance,Stationery,40050,"Printing, Stationery and Gener",,Sellotape (pack of 6),01/11/2017,125159,0.66,Revenue,Lyreco UK Ltd,17623
Chorley Borough Council,http://statistics.data.gov.uk/id/local-authority/30UE,General Fund Revenue Account,,Policy & Governance,Stationery,40050,"Printing, Stationery and Gener",,BX50 FASTENERS METAL,01/11/2017,125159,6.52,Revenue,Lyreco UK Ltd,17623
Chorley Borough Council,http://statistics.data.gov.uk/id/local-authority/30UE,Chorley Borough Council,,Policy & Governance,Stationery,40050,"Printing, Stationery and Gener",,Micron Ball Point Blue Stick Pens 0.7Mm Line Width - Box Of 50,01/11/2017,125159,1.50,Revenue,Lyreco UK Ltd,17623
Chorley Borough Council,http://statistics.data.gov.uk/id/local-authority/30UE,Chorley Borough Council,,Policy & Governance,Stationery,40050,Expenditure,,Lyreco Budget Notebook A4 60 gsm ruled spiral - Pack of 10,01/11/2017,125159,4.40,Revenue,Lyreco UK Ltd,17623
Chorley Borough Council,http://statistics.data.gov.uk/id/local-authority/30UE,Office Support Services,,Policy & Governance,Stationery,40050,Expenditure,,Lyreco A1 Flipchart Pads - Pack Of 5 (5 X 40 Sheets),01/11/2017,125159,8.63,Revenue,Lyreco UK Ltd,17623
Chorley Borough Council,http://statistics.data.gov.uk/id/local-authority/30UE,Chorley Borough Council,,Policy & Governance,Stationery,40050,Expenditure,,A4 clear punched pockets,01/11/2017,125159,6.75,Revenue,Lyreco UK Ltd,17623
Chorley Borough Council,http://statistics.data.gov.uk/id/local-authority/30UE,Office Support Services,,Policy & Governance,Stationery,40050,Expenditure,,Rapesco bright wallets Asst bright Foolscap Pack of 5,01/11/2017,125159,0.80,Revenue,Lyreco UK Ltd,17623
Chorley Borough Council,http://statistics.data.gov.uk/id/local-authority/30UE,Chorley Borough Council,,Policy & Governance,Stationery,40050,Expenditure,,Lyreco Plain Yellow Sticky Notes 125 X 75Mm - Pack Of 12 Pads,01/11/2017,125159,1.68,Revenue,Lyreco UK Ltd,17623
Chorley Borough Council,http://statistics.data.gov.uk/id/local-authority/30UE,General Fund Revenue Account,,Policy & Governance,Stationery,40050,Expenditure,,Lyreco Plain Yellow Sticky Notes 75 X 75Mm - Pack Of 12 Pads,01/11/2017,125159,1.32,Revenue,Lyreco UK Ltd,17623
Chorley Borough Council,http://statistics.data.gov.uk/id/local-authority/30UE,Chorley Borough Council,,Policy & Governance,Stationery,40050,Expenditure,,Lyreco Plain Yellow Sticky Notes 50 X 40Mm - Pack Of 12 Pads,01/11/2017,125159,0.27,Revenue,Lyreco UK Ltd,17623
Chorley Borough Council,http://statistics.data.gov.uk/id/local-authority/30UE,Chorley Borough Council,,Policy & Governance,Computer Consumables,40099,Supplies and Services,,Compatible cartridge for Lexmark T650,01/11/2017,125159,216.47,Revenue,Lyreco UK Ltd,17623
Chorley Borough Council,http://statistics.data.gov.uk/id/local-authority/30UE,General Fund Revenue Account,,Policy & Governance,Stationery,40050,"Printing, Stationery and Gener",,LYRECO BUDGET WHITE 8 X 5INCH SHORTHAND NOTEBOOKS (RULED) - PACK OF 20(X80 SHTS),01/11/2017,125159,4.80,Revenue,Lyreco UK Ltd,17623
Chorley Borough Council,http://statistics.data.gov.uk/id/local-authority/30UE,General Fund Revenue Account,,Policy & Governance,Stationery,40050,"Printing, Stationery and Gener",,"139.418 LYRECO CORRECTION FLUID 20ML 	- Pack of 10",01/11/2017,125159,0.90,Revenue,Lyreco UK Ltd,17623
Chorley Borough Council,http://statistics.data.gov.uk/id/local-authority/30UE,General Fund Revenue Account,,Policy & Governance,Stationery,40050,"Printing, Stationery and Gener",,Lyreco Glue Stick - Large 40G,01/11/2017,125159,0.78,Revenue,Lyreco UK Ltd,17623
Chorley Borough Council,http://statistics.data.gov.uk/id/local-authority/30UE,Streetscene Neighbourhoods Env,,Customer & Digital,Grounds Maintenance Contractor,20043,Cash,,for various tree works as per invoice 24 - tree works up to 31st October 2017 including some emergency work,22/11/2017,125565,"2,630.00",Revenue,M J Walker,62044
Chorley Borough Council,http://statistics.data.gov.uk/id/local-authority/30UE,Street Environment,,Customer & Digital,Grounds Maintenance Contractor,20043,Cash,,For various tree works as listed in invoice 23 - Tree works up to 29th September,22/11/2017,125567,"2,310.00",Revenue,M J Walker,62044
Chorley Borough Council,http://statistics.data.gov.uk/id/local-authority/30UE,General Fund Revenue Account,,Customer & Digital,Vehicle Maintenance,30045,Cash,,Carryout sandblasting and painting of Chorley Council towed gritter at price quoted by NAME REDACTED,22/11/2017,121354,580.00,Revenue,M W Rainford,17057
Chorley Borough Council,http://statistics.data.gov.uk/id/local-authority/30UE,Budget Holder Control Code,,Early Intervention,Grants,3002,Other Funds and Balance Sheet,,ADDRESS REDACTED,10/11/2017,125402,"4,760.00",Revenue,M.J Park Building Contractors,20367
Chorley Borough Council,http://statistics.data.gov.uk/id/local-authority/30UE,Capital Fund,,Early Intervention,Grants,3002,Net Expenditure,,ADDRESS REDACTED,29/11/2017,125793,"3,725.00",Revenue,M.J Park Building Contractors,20367
Chorley Borough Council,http://statistics.data.gov.uk/id/local-authority/30UE,Cost of Service,,Policy & Governance,Exhibitions & Special Events,40158,Miscellaneous Expenses,5034,Council contribution to the Chorley Elf mascot,29/11/2017,125845,500.00,Revenue,Mascots UK and Hire Limited,77033
Chorley Borough Council,http://statistics.data.gov.uk/id/local-authority/30UE,Comprehensive I&E Statement,,Policy & Governance,Agency Staff,13000,Net Expenditure or Balance,,AGENCY STAFF,08/11/2017,125122,"1,569.63",Revenue,Matrix SCM Ltd,22128
Chorley Borough Council,http://statistics.data.gov.uk/id/local-authority/30UE,Character and Feel,,Policy & Governance,Agency Staff,13000,Expenditure,,AGENCY STAFF,08/11/2017,125122,566.72,Revenue,Matrix SCM Ltd,22128
Chorley Borough Council,http://statistics.data.gov.uk/id/local-authority/30UE,Environment,,Policy & Governance,Agency Staff,13000,Expenditure,,AGENCY STAFF,08/11/2017,125270,533.60,Revenue,Matrix SCM Ltd,22128
Chorley Borough Council,http://statistics.data.gov.uk/id/local-authority/30UE,Comprehensive I&E Statement,,Policy & Governance,Agency Staff,13000,Net Expenditure or Balance,,AGENCY STAFF,29/11/2017,125620,"1,569.64",Revenue,Matrix SCM Ltd,22128
Chorley Borough Council,http://statistics.data.gov.uk/id/local-authority/30UE,Character and Feel,,Policy & Governance,Agency Staff,13000,Expenditure,,AGENCY STAFF,29/11/2017,125620,533.60,Revenue,Matrix SCM Ltd,22128
Chorley Borough Council,http://statistics.data.gov.uk/id/local-authority/30UE,Chorley Borough Council,,Policy & Governance,Agency Staff,13000,Expenditure,,AGENCY STAFF,29/11/2017,125621,533.60,Revenue,Matrix SCM Ltd,22128
Chorley Borough Council,http://statistics.data.gov.uk/id/local-authority/30UE,"Highways, Roads & Transport Se",,Customer & Digital,Supplies-Grounds Maintenance,40025,Cash,,Supply and deliver 20 tonnes of ultitrec to Yarrow valley park,17/11/2017,125538,407.38,Revenue,Mc & Ma Stewart (Haulage Ltd),16627
Chorley Borough Council,http://statistics.data.gov.uk/id/local-authority/30UE,General Fund Revenue Account,,Customer & Digital,Supplies-Grounds Maintenance,40025,Cash,,Supply and deliver 20 tonnes of ultitrec to Brinscall,17/11/2017,125539,408.62,Revenue,Mc & Ma Stewart (Haulage Ltd),16627
Chorley Borough Council,http://statistics.data.gov.uk/id/local-authority/30UE,Cost of Service,,Customer & Digital,Supplies-Grounds Maintenance,40025,Cash,,20 ton Mushroom Compost,29/11/2017,125557,408.00,Revenue,Mc & Ma Stewart (Haulage Ltd),16627
Chorley Borough Council,http://statistics.data.gov.uk/id/local-authority/30UE,Environment,,Early Intervention,Children's Activities,40188,Miscellaneous Expenses,5034,"Coaching, track use and bike hire for Chorley Council Get up and Go Bmx Summer camp (15th, 16th & 17th August) Coaches ",10/11/2017,125381,570.00,Revenue,Mid Lancs BMX Club,22010
Chorley Borough Council,http://statistics.data.gov.uk/id/local-authority/30UE,Housing Investment Programme,,Early Intervention,Grants,3002,Other Subjective Codes,,ADDRESS REDACTED,29/11/2017,125794,"6,599.00",Revenue,Millercare Ltd,77050
Chorley Borough Council,http://statistics.data.gov.uk/id/local-authority/30UE,Housing Investment Programme,,Early Intervention,Grants,3002,Other Funds and Balance Sheet,,ADDRESS REDACTED,08/11/2017,125250,"4,101.20",Revenue,Mint Northwest Ltd,65607
Chorley Borough Council,http://statistics.data.gov.uk/id/local-authority/30UE,Disabled Facilities Grants,,Early Intervention,Grants,3002,Capital Fund Subjectives,,ADDRESS REDACTED,08/11/2017,125251,"7,573.59",Revenue,Mint Northwest Ltd,65607
Chorley Borough Council,http://statistics.data.gov.uk/id/local-authority/30UE,Disabled Facilities Grants,,Early Intervention,Grants,3002,Other Funds and Balance Sheet,,ADDRESS REDACTED,08/11/2017,125252,"4,554.68",Revenue,Mint Northwest Ltd,65607
Chorley Borough Council,http://statistics.data.gov.uk/id/local-authority/30UE,Disabled Facilities Grants,,Early Intervention,Grants,3002,Net Expenditure,,ADDRESS REDACTED,10/11/2017,125403,"19,616.60",Revenue,Mint Northwest Ltd,65607
Chorley Borough Council,http://statistics.data.gov.uk/id/local-authority/30UE,Disabled Facilities Grants,,Early Intervention,Grants,3002,Other Subjective Codes,,ADDRESS REDACTED,10/11/2017,125462,"2,171.86",Revenue,Mint Northwest Ltd,65607
Chorley Borough Council,http://statistics.data.gov.uk/id/local-authority/30UE,Business,,Early Intervention,External Contractor,40198,Supplies and Services,,NAME REDACTED,10/11/2017,125418,650.00,Revenue,Mobility Care Services,70841
Chorley Borough Council,http://statistics.data.gov.uk/id/local-authority/30UE,Strategic Housing,,Early Intervention,External Contractor,40198,Supplies and Services,,NAME REDACTED,10/11/2017,125419,365.00,Revenue,Mobility Care Services,70841
Chorley Borough Council,http://statistics.data.gov.uk/id/local-authority/30UE,General Fund Revenue Account,,Early Intervention,External Contractor,40198,Supplies and Services,,NAME REDACTED,10/11/2017,125420,250.00,Revenue,Mobility Care Services,70841
Chorley Borough Council,http://statistics.data.gov.uk/id/local-authority/30UE,Comprehensive I&E Statement,,Early Intervention,External Contractor,40198,Contracting Expenses & Fees,,NAME REDACTED,10/11/2017,125452,250.00,Revenue,Mobility Care Services,70841
Chorley Borough Council,http://statistics.data.gov.uk/id/local-authority/30UE,Income and Expenditure Account,,Business Development & Growth,Miscellaneous Expenses,40200,Miscellaneous Expenses,,"Manufacture and install 4 number support bars to the Theatre walk sign as per drawing detail, allowed for 4 number 16mm",17/11/2017,125574,385.00,Revenue,Morgan Brothers Metalwork Solutions,76663
Chorley Borough Council,http://statistics.data.gov.uk/id/local-authority/30UE,Capital,Capital,Business Development & Growth,Main Contractor,3007,Capital Expenditure,,Drainage works to Astley Playing Fields / Showground in accordance with quotation submitted May 2017.,10/11/2017,125338,"4,875.00",Capital,Mr Andy Hart,72236
Chorley Borough Council,http://statistics.data.gov.uk/id/local-authority/30UE,Environmental Health,,Customer & Digital,Miscellaneous Expenses,40200,Supplies and Services,,"land drainage works at Cripplegate Lane, Hoghton",10/11/2017,125395,350.00,Revenue,Mr Stephen Scambler,16710
Chorley Borough Council,http://statistics.data.gov.uk/id/local-authority/30UE,Private Sector HSG Renewal,1073,Early Intervention,External Contractor,40198,Contracting Expenses & Fees,,Provision of Energy Switching Support Service (October 2017),10/11/2017,125202,981.00,Revenue,Mrs Heather Shaw,65606
Chorley Borough Council,http://statistics.data.gov.uk/id/local-authority/30UE,Housing Investment Programme,,Early Intervention,Grants,3002,Other Subjective Codes,,ADDRESS REDACTED,22/11/2017,125613,420.00,Revenue,NAME REDACTED,77023
Chorley Borough Council,http://statistics.data.gov.uk/id/local-authority/30UE,Income and Expenditure Account,,Customer & Digital,Vehicle Maintenance,30045,Net Expenditure or Balance,,"for repairs to Ransome Parkway Cylinders, supply of bearings and sharpening chipper blades",22/11/2017,125559,376.10,Revenue,MW Grass Machinery,21616
Chorley Borough Council,http://statistics.data.gov.uk/id/local-authority/30UE,Character and Feel,,Customer & Digital,Training Course Fees,17010,Net Expenditure or Balance,,Introduction to Evaluating Trees for Hazards (Ref:17ARBSCPS507) held on 22nd November. Candidates are NAMES REDACTED,29/11/2017,125088,330.00,Revenue,Myerscough College,18214
Chorley Borough Council,http://statistics.data.gov.uk/id/local-authority/30UE,Waste Management,,Customer & Digital,Publicity - Advertising,40157,Advertising and Publicity,,1PP A5 TESLIN LABELS FOR WHEELIE BINS As per quotation 15866,08/11/2017,125194,282.00,Revenue,N B Colour Print Ltd,17917
Chorley Borough Council,http://statistics.data.gov.uk/id/local-authority/30UE,CuDOSS Unit,,Policy & Governance,Printing,40043,Supplies and Services,,What`s Happening mag Winter 17/18,22/11/2017,125204,"2,384.00",Revenue,N B Colour Print Ltd,17917
Chorley Borough Council,http://statistics.data.gov.uk/id/local-authority/30UE,Policy and Performance,,Policy & Governance,Miscellaneous Expenses,40200,Miscellaneous Expenses,,Sweet Pea 12pg booklet,22/11/2017,125564,405.00,Revenue,N B Colour Print Ltd,17917
Chorley Borough Council,http://statistics.data.gov.uk/id/local-authority/30UE,Office Support Services,,Policy & Governance,Postages,40082,Communication and Computing,,"Quarterly Rental on One NFS330 Franking Machine, Serial Number NE8002360 / DA 1243567448 and One 2kg scale",01/11/2017,125187,631.50,Revenue,Nationwide Capital Finance Ltd,21739
Chorley Borough Council,http://statistics.data.gov.uk/id/local-authority/30UE,Environmental Health,,Early Intervention,Miscellaneous Expenses,40200,Supplies and Services,,Skips for Clean up / Skip Days - Neighbourhoods,01/11/2017,124847,725.62,Revenue,Neales Waste Management,17583
Chorley Borough Council,http://statistics.data.gov.uk/id/local-authority/30UE,Character and Feel,,Early Intervention,Miscellaneous Expenses,40200,Supplies and Services,,skip day,01/11/2017,124859,547.27,Revenue,Neales Waste Management,17583
Chorley Borough Council,http://statistics.data.gov.uk/id/local-authority/30UE,Customer & Digital,,Customer & Digital,Refuse Collection,20037,Net Expenditure or Balance,,Asbestos waste removal from Chorley Council Bengal Street depot PR7 1SA,22/11/2017,125546,450.00,Revenue,Neales Waste Management,17583
Chorley Borough Council,http://statistics.data.gov.uk/id/local-authority/30UE,Streetscene Delivery Teams,,Customer & Digital,Refuse Collection,20037,Net Expenditure or Balance,,Exchange of 20 Street sweeping skips at price quoted from Bengal St depot PR7 1SA,24/11/2017,125547,"1,426.26",Revenue,Neales Waste Management,17583
Chorley Borough Council,http://statistics.data.gov.uk/id/local-authority/30UE,Revenue Outturn,,Customer & Digital,Refuse Collection,20037,Net Expenditure or Balance,,Exchange of 35yrd Street cleaning and flytip skip at price quoted from Bengal St depot PR7 1SA,24/11/2017,125547,"1,264.25",Revenue,Neales Waste Management,17583
Chorley Borough Council,http://statistics.data.gov.uk/id/local-authority/30UE,Jo Oliver,,Customer & Digital,Refuse Collection,20037,Net Expenditure or Balance,,Exchange of 35yrd compostable green waste skip at price quoted from Bengal St depot PR7 1SA,24/11/2017,125547,422.50,Revenue,Neales Waste Management,17583
Chorley Borough Council,http://statistics.data.gov.uk/id/local-authority/30UE,Service Management & Support,1009,Customer & Digital,Refuse Collection,20037,Net Expenditure or Balance,,Charge for disposal of compostable green waste at price quoted,24/11/2017,125547,112.50,Revenue,Neales Waste Management,17583
Chorley Borough Council,http://statistics.data.gov.uk/id/local-authority/30UE,Deputy Chief Executive,,Business Development & Growth,Refuse Collection,20037,Net Expenditure or Balance,,Market Walk Yard 1 - General Waste compacted - 35 Yard roll on/roll off skip from compactor @64.83 per exchange,24/11/2017,125750,64.83,Revenue,Neales Waste Management,17583
Chorley Borough Council,http://statistics.data.gov.uk/id/local-authority/30UE,Deputy Chief Executive,,Business Development & Growth,Refuse Collection,20037,Net Expenditure or Balance,,Market Walk Yard 1 general waste compacted - 35 yard roll on/roll off skip from compactor disposal costs per tonne ,24/11/2017,125750,"1,311.53",Revenue,Neales Waste Management,17583
Chorley Borough Council,http://statistics.data.gov.uk/id/local-authority/30UE,Corporate  Democratic Core,,Business Development & Growth,General Subscriptions,40146,Expenditure,,Subscription for Chamber year to 11/11/2018.,08/11/2017,125293,260.00,Revenue,North & Western Lancs Chamber Of Commerce,16786
Chorley Borough Council,http://statistics.data.gov.uk/id/local-authority/30UE,Cost of Service,,Business Development & Growth,Electricity,20013,Cash,,car park,15/11/2017,125408,1.11,Revenue,Npower Commercial Gas,16814
Chorley Borough Council,http://statistics.data.gov.uk/id/local-authority/30UE,Chief Executive,,Business Development & Growth,Electricity,20013,Cash,,pay and display,15/11/2017,125408,110.42,Revenue,Npower Commercial Gas,16814
Chorley Borough Council,http://statistics.data.gov.uk/id/local-authority/30UE,Environment,,Business Development & Growth,Electricity,20013,Premises Related Expenses,,cctv,15/11/2017,125408,273.17,Revenue,Npower Commercial Gas,16814
Chorley Borough Council,http://statistics.data.gov.uk/id/local-authority/30UE,Public Space Services Unit,,Business Development & Growth,External Contractors,50008,Net Expenditure or Balance,,"Street car park enforcement, cash collection, cash counting facilities third party bulk cash collections April 17 March 18",10/11/2017,125217,"4,038.97",Revenue,NSL Limited,67253
Chorley Borough Council,http://statistics.data.gov.uk/id/local-authority/30UE,"Highways, Roads & Transport Se",,Business Development & Growth,External Contractors,50008,Net Expenditure or Balance,,"Vari fee for extra enforcement (May, June, July, August & Sept 17)",17/11/2017,125581,971.30,Revenue,NSL Limited,67253
Chorley Borough Council,http://statistics.data.gov.uk/id/local-authority/30UE,Chief Executive,,Business Development & Growth,External Contractors,50008,Expenditure,,Provide extra staff: x1 Cleveland St on Mon - Fri 8am - 3pm & Saturday 8am - 1pm (Started 16.10.17) Extra staff to cover all other,17/11/2017,125582,"1,422.80",Revenue,NSL Limited,67253
Chorley Borough Council,http://statistics.data.gov.uk/id/local-authority/30UE,Chorley Borough Council,,Policy & Governance,Consultants' Fees,40077,Consultants Fees,,Resident`s Survey 2017,29/11/2017,125196,"4,780.00",Revenue,NWA Social & Market Research Limited,20931
Chorley Borough Council,http://statistics.data.gov.uk/id/local-authority/30UE,System Control Accounts,,Customer & Digital,Manual Control Account,1,Net Expenditure or Balance,,,08/11/2017,125344,"3,888.00",Revenue,P Casey & Co Ltd,76988
Chorley Borough Council,http://statistics.data.gov.uk/id/local-authority/30UE,Markets & Town Centre Mgnt,,Business Development & Growth,Printing,40043,Expenditure,,"Please supply x60,000 102388 stock tickets (2-part ticket - Same as the Booths ticket but no advertising). @ 6.45 per 1000",29/11/2017,125801,387.00,Revenue,Paperwork (UK) Limited,18296
Chorley Borough Council,http://statistics.data.gov.uk/id/local-authority/30UE,Heart of Economic Development,,Business Development & Growth,External Contractors,50008,Expenditure,,Estimated Penalty Charge Notices for Quarter 3 October 2017- December 2017,22/11/2017,125667,354.45,Revenue,PATROL,21859
Chorley Borough Council,http://statistics.data.gov.uk/id/local-authority/30UE,General Fund Revenue Account,,Policy & Governance,Service Fees,40056,Service Fees,,Occupational Health Fees October 2017,29/11/2017,125313,371.75,Revenue,People Asset Management Limited,76487
Chorley Borough Council,http://statistics.data.gov.uk/id/local-authority/30UE,Comprehensive I&E Statement,,Policy & Governance,Service Fees,40056,Expenditure,,occ health,29/11/2017,125313,640.00,Revenue,People Asset Management Limited,76487
Chorley Borough Council,http://statistics.data.gov.uk/id/local-authority/30UE,Culture & Related Services,104,Policy & Governance,Performing Rights Society Fees,40148,Expenditure,,Fees for period 6th July 2017 to 5th October 2017.,08/11/2017,125320,733.03,Revenue,Performing Right Society Ltd,19909
Chorley Borough Council,http://statistics.data.gov.uk/id/local-authority/30UE,Chorley Borough Council,,Customer & Digital,Supplies-Grounds Maintenance,40025,Cash,,Various indoor plants for Remembrance Day. Town Hall display,29/11/2017,125805,370.90,Revenue,Peter H Smith Limited,17088
Chorley Borough Council,http://statistics.data.gov.uk/id/local-authority/30UE,Regulatory Services,,Early Intervention,External Contractor,40198,Contracting Expenses & Fees,,Pest Control Duties within Chorley Council,01/11/2017,124819,340.00,Revenue,Peter L Johnson,16727
Chorley Borough Council,http://statistics.data.gov.uk/id/local-authority/30UE,Environmental Health,,Early Intervention,External Contractor,40198,Contracting Expenses & Fees,,Pest Control Duties within Chorley Council,01/11/2017,124960,340.00,Revenue,Peter L Johnson,16727
Chorley Borough Council,http://statistics.data.gov.uk/id/local-authority/30UE,"Cultural, Environmental & Plan",,Early Intervention,External Contractor,40198,Contracting Expenses & Fees,,Pest Control Duties within Chorley Council,10/11/2017,125173,340.00,Revenue,Peter L Johnson,16727
Chorley Borough Council,http://statistics.data.gov.uk/id/local-authority/30UE,Environmental Health,,Early Intervention,External Contractor,40198,Contracting Expenses & Fees,,Pest Control Duties within Chorley Council,10/11/2017,125241,340.00,Revenue,Peter L Johnson,16727
Chorley Borough Council,http://statistics.data.gov.uk/id/local-authority/30UE,Environmental Health Unspeci,,Early Intervention,External Contractor,40198,Contracting Expenses & Fees,,Pest Control Duties within Chorley Council,15/11/2017,125466,340.00,Revenue,Peter L Johnson,16727
Chorley Borough Council,http://statistics.data.gov.uk/id/local-authority/30UE,Chorley Borough Council,,Early Intervention,Miscellaneous Expenses,40200,Supplies and Services,,White Ribbon plaque,01/11/2017,125163,300.00,Revenue,Police & Crime Commissioner,17548
Chorley Borough Council,http://statistics.data.gov.uk/id/local-authority/30UE,Chorley Borough Council,,Early Intervention,Safety Signs And Posters,40017,Street Furniture,,A3 size slightly taller to accommodate cable ties without covering up the text. 2 holes drilled top and bottom  Printed on reflective,01/11/2017,124838,601.78,Revenue,Poppy Signs Ltd,21898
Chorley Borough Council,http://statistics.data.gov.uk/id/local-authority/30UE,Chorley Borough Council,,Early Intervention,Supplies-Grounds Maintenance,40025,Supplies for Stores,,Batch of 40 Fly Tipping `We`re watching` signs,01/11/2017,124882,489.09,Revenue,Poppy Signs Ltd,21898
Chorley Borough Council,http://statistics.data.gov.uk/id/local-authority/30UE,Property Services Unit,,Business Development & Growth,Promotional Expenses,40159,Miscellaneous Expenses,,Batch of 2 banners 3330mm x 1700mm Installed on Flat Iron on the bypass side of the hoardings. One of the town centre team ,10/11/2017,125210,312.97,Revenue,Poppy Signs Ltd,21898
Chorley Borough Council,http://statistics.data.gov.uk/id/local-authority/30UE,Chorley Borough Council,,Business Development & Growth,Signs:Provision & Maintenance,20065,Cash,,A 1 Unit(s) Batch of 20 Stickers Artwork provided 89.16  B 1 Unit(s) Installation of 20 stickers on various parking machines,10/11/2017,125339,260.78,Revenue,Poppy Signs Ltd,21898
Chorley Borough Council,http://statistics.data.gov.uk/id/local-authority/30UE,Policy and Performance,,Policy & Governance,Exhibitions & Special Events,40158,Net Expenditure or Balance,,Installation of the Santa Post Box,24/11/2017,125508,367.30,Revenue,Poppy Signs Ltd,21898
Chorley Borough Council,http://statistics.data.gov.uk/id/local-authority/30UE,Chorley Borough Council,,Business Development & Growth,Signs:Provision & Maintenance,20065,Premises Related Expenses,,REF9699/1 Steeley Lane - Replacement ``Curved Top`` panel + ``Rectangle Panel`` due to wind damage,22/11/2017,125562,505.13,Revenue,Poppy Signs Ltd,21898
Chorley Borough Council,http://statistics.data.gov.uk/id/local-authority/30UE,"Highways, Roads & Transport Se",,Business Development & Growth,Miscellaneous Expenses,40200,Cash,,As per quote ref: REF9760/2 Please supply: Re : Woodlands Park & Ride - REVISED Further to your enquiry,24/11/2017,125651,795.73,Revenue,Poppy Signs Ltd,21898
Chorley Borough Council,http://statistics.data.gov.uk/id/local-authority/30UE,Parking Services,,Business Development & Growth,Miscellaneous Expenses,40200,Cash,,As per quote ref: REF9774/2 Re : Market Walk Hoardings - Alternative route signs - replacements All prices quoted below ,24/11/2017,125652,523.13,Revenue,Poppy Signs Ltd,21898
Chorley Borough Council,http://statistics.data.gov.uk/id/local-authority/30UE,Streetscene Neighbourhoods Env,,Business Development & Growth,Miscellaneous Expenses,40200,Miscellaneous Expenses,,"As per quote reference: REF9810/1 Hollinshead parking, Flat Iron parking and navigation signs Hollinshead Flat Iron Navigation",29/11/2017,125693,"3,095.65",Revenue,Poppy Signs Ltd,21898
Chorley Borough Council,http://statistics.data.gov.uk/id/local-authority/30UE,General Fund Revenue Account,,Business Development & Growth,Miscellaneous Expenses,40200,Supplies and Services,,Shop mobility signs,29/11/2017,125693,504.43,Revenue,Poppy Signs Ltd,21898
Chorley Borough Council,http://statistics.data.gov.uk/id/local-authority/30UE,Chorley Borough Council,,Policy & Governance,Photocopier Consumables,40049,"Printing, Stationery & General",5026,EVE 2180 everyday a4 80gms white paper,08/11/2017,125226,489.00,Revenue,Premier Paper Group,54451
Chorley Borough Council,http://statistics.data.gov.uk/id/local-authority/30UE,Chorley Borough Council,,Policy & Governance,Photocopier Consumables,40049,Printing,,EVE 4280 Everyday A3 80gms paper,08/11/2017,125226,24.70,Revenue,Premier Paper Group,54451
Chorley Borough Council,http://statistics.data.gov.uk/id/local-authority/30UE,Chorley Borough Council,,Policy & Governance,Miscellaneous Expenses,40200,Miscellaneous Expenses,,NAME REDACTED - Flower show Train/Car expenses,22/11/2017,125180,252.00,Revenue,Prime Performers Limited,70499
Chorley Borough Council,http://statistics.data.gov.uk/id/local-authority/30UE,Policy & Governance,,Policy & Governance,Postages,40082,Expenditure,,Initial ITR postage,15/11/2017,125501,"1,299.40",Revenue,Print Image Facilities LLP,57870
Chorley Borough Council,http://statistics.data.gov.uk/id/local-authority/30UE,Budget Holder Control Code,,Policy & Governance,Postages,40082,Expenditure,,New postal vote application mail out November 2017,24/11/2017,125732,642.31,Revenue,Print Image Facilities LLP,57870
Chorley Borough Council,http://statistics.data.gov.uk/id/local-authority/30UE,General Fund Revenue Account,,Policy & Governance,Printing,40043,Printing,,"2nd reminder run of HEF`s   (13,966)",03/11/2017,125230,"1,445.42",Revenue,Print Image Network,21171
Chorley Borough Council,http://statistics.data.gov.uk/id/local-authority/30UE,Group Director Service Group A,,Policy & Governance,Printing,40043,Printing,,ITR mailings plus envelopes (1st run) (3219),03/11/2017,125231,"2,060.00",Revenue,Print Image Network,21171
Chorley Borough Council,http://statistics.data.gov.uk/id/local-authority/30UE,Short Term Creditors,,Policy & Governance,General Balances,100,Balance Sheet,,sal deds,22/11/2017,125599,"4,712.03",Revenue,PRUDENTIAL,18178
Chorley Borough Council,http://statistics.data.gov.uk/id/local-authority/30UE,Operational and IT Security,,Customer & Digital,Computer Software-Maintenance,40107,Expenditure,,NBS Subs renewal for 1 year commencing 01/09/2017,29/11/2017,125763,"1,280.00",Revenue,RIBA Enterprises,19747
Chorley Borough Council,http://statistics.data.gov.uk/id/local-authority/30UE,Waste & Streetscene Services,,Customer & Digital,Consultants` Fees,40077,Net Expenditure or Balance,,Consultancy services to support the provision of a waste collection contract,15/11/2017,125206,"2,668.25",Revenue,Ricardo Energy & Environment,76939
Chorley Borough Council,http://statistics.data.gov.uk/id/local-authority/30UE,Chorley Borough Council,,Business Development & Growth,Miscellaneous Expenses,40200,Net Expenditure or Balance,,QS services for enabling works,10/11/2017,125341,"1,300.00",Revenue,Rider Levett Bucknall,67527
Chorley Borough Council,http://statistics.data.gov.uk/id/local-authority/30UE,Customer Services,,Customer & Digital,Postages,40082,Supplies and Services,,Delivery other than addressed (PO Box 13),01/11/2017,125160,"2,500.00",Revenue,Royal Mail Group Plc,17522
Chorley Borough Council,http://statistics.data.gov.uk/id/local-authority/30UE,Legal Democratic & HR Services,,Policy & Governance,Postages,40082,Expenditure,,business reply RRHA-KZCB-CAXA September 2017 - March 2017,08/11/2017,125310,964.31,Revenue,Royal Mail Group Plc,17522
Chorley Borough Council,http://statistics.data.gov.uk/id/local-authority/30UE,Street Environment,,Customer & Digital,Diesel/Derv,30007,Expenditure,,Please supply 6000 litres of Road Diesel @ the unit price of 0.97 per litre as per your bid on The Chest,24/11/2017,125704,"5,859.98",Revenue,Samuel Cooke & Co Ltd,17173
Chorley Borough Council,http://statistics.data.gov.uk/id/local-authority/30UE,Housing Services,,Early Intervention,External Contractor,40198,Supplies and Services,,"For concierge service at Cotswold Supported Housing, Cotswold Road, Chorley, PR7 3HW. Aug 17 - March 18",01/11/2017,124956,"2,284.45",Revenue,Sector Security Services,19269
Chorley Borough Council,http://statistics.data.gov.uk/id/local-authority/30UE,Premises Development,10281,Business Development & Growth,Security Service,40062,Service Fees,,Security services to Market Walk Shopping Centre from April 2017 to March 2018. @5809.40 per month - Contract No. 754775,01/11/2017,125020,"5,809.40",Revenue,Securitas Security Services (UK) Ltd,70693
Chorley Borough Council,http://statistics.data.gov.uk/id/local-authority/30UE,Premises Development,10281,Business Development & Growth,Security Service,40062,Service Fees,,Security services to Market Walk Shopping Centre from April 2017 to March 2018. @5809.40 per month - Contract No. 754775,29/11/2017,125707,"6,038.04",Revenue,Securitas Security Services (UK) Ltd,70693
Chorley Borough Council,http://statistics.data.gov.uk/id/local-authority/30UE,Employment Skills & Business,,Business Development & Growth,Grants To Other Organisations,40127,Cash,,big grant,24/11/2017,125736,"3,000.00",Revenue,Sharples Davies Ltd,76698
Chorley Borough Council,http://statistics.data.gov.uk/id/local-authority/30UE,Policy & Governance,,Policy & Governance,Miscellaneous Expenses,40200,Miscellaneous Expenses,,Film and produce a promotional video to encourage visitors to Chorley as part of the check out Chorley campaign,24/11/2017,125304,850.00,Revenue,SkyOptics Ltd,76623
Chorley Borough Council,http://statistics.data.gov.uk/id/local-authority/30UE,Streetscene Neighbourhoods Env,,Customer & Digital,Protective Clothing,40040,Expenditure,,Orbit Hercules 620 Safety Boot (Ankle).  Size = 11.  Product Code = CBC03,29/11/2017,125506,64.80,Revenue,Smart Image Workwear,21064
Chorley Borough Council,http://statistics.data.gov.uk/id/local-authority/30UE,General Fund Revenue Account,,Customer & Digital,Protective Clothing,40040,Expenditure,,Orbit Hercules 620 Safety Boot (Ankle).  Size = 10.  Product Code = CBC03,29/11/2017,125506,97.20,Revenue,Smart Image Workwear,21064
Chorley Borough Council,http://statistics.data.gov.uk/id/local-authority/30UE,Service Management & Support,1009,Customer & Digital,Protective Clothing,40040,Expenditure,,Orbit Hercules 620 Safety Boot (Ankle).  Size = 9.  Product Code = CBC03,29/11/2017,125506,97.20,Revenue,Smart Image Workwear,21064
Chorley Borough Council,http://statistics.data.gov.uk/id/local-authority/30UE,Chief Executive,,Customer & Digital,Protective Clothing,40040,Net Expenditure or Balance,,Orbit Hercules 620 Safety Boot (Ankle).  Size = 8.  Product Code = CBC03,29/11/2017,125506,129.60,Revenue,Smart Image Workwear,21064
Chorley Borough Council,http://statistics.data.gov.uk/id/local-authority/30UE,"Cultural, Environmental & Plan",,Customer & Digital,Tools & Equipment - Purchase,40003,Expenditure,,Regatta Benson II 3 in 1 Jacket.  Colour = Black c/w Chorley Council white logo heat sealed on left breast. Size = Small,24/11/2017,125664,39.40,Revenue,Smart Image Workwear,21064
Chorley Borough Council,http://statistics.data.gov.uk/id/local-authority/30UE,"Cultural, Environmental & Plan",,Customer & Digital,Tools & Equipment - Purchase,40003,Expenditure,,Regatta Benson II 3 in 1 Jacket.  Colour = Black c/w Chorley Council white logo heat sealed on left breast.  Size = Medium,24/11/2017,125664,78.80,Revenue,Smart Image Workwear,21064
Chorley Borough Council,http://statistics.data.gov.uk/id/local-authority/30UE,"Cultural, Environmental & Plan",,Customer & Digital,Tools & Equipment - Purchase,40003,Expenditure,,Regatta Benson II 3 in 1 Jacket.  Colour = Black c/w Chorley Council white logo heat sealed on left breast.  Size = Large,24/11/2017,125664,39.40,Revenue,Smart Image Workwear,21064
Chorley Borough Council,http://statistics.data.gov.uk/id/local-authority/30UE,Net Cost of Service,,Customer & Digital,Tools & Equipment - Purchase,40003,Cash,,Regatta Benson II 3 in 1 Jacket.  Colour = Black c/w Chorley Council white logo heat sealed on left breast.  Size = X Large,24/11/2017,125664,78.80,Revenue,Smart Image Workwear,21064
Chorley Borough Council,http://statistics.data.gov.uk/id/local-authority/30UE,General Fund Revenue Account,,Customer & Digital,Tools & Equipment - Purchase,40003,Net Expenditure or Balance,,Regatta Benson II 3 in 1 Jacket.  Colour = Black c/w Chorley Council white logo heat sealed on left breast.  Size = XX Large,24/11/2017,125664,39.40,Revenue,Smart Image Workwear,21064
Chorley Borough Council,http://statistics.data.gov.uk/id/local-authority/30UE,Income and Expenditure Account,,Customer & Digital,Supplies-Grounds Maintenance,40025,Expenditure,,Spaldings Garden Hoe (Dutch Hoe) 5``.  Product Code = 27207,29/11/2017,125808,32.50,Revenue,Spalding (UK) Limited,20264
Chorley Borough Council,http://statistics.data.gov.uk/id/local-authority/30UE,Management & Administration,,Customer & Digital,Supplies-Grounds Maintenance,40025,Cash,,Garden Digging Spade 28`` S&J Neverbend.  Product Code = 30807,29/11/2017,125808,49.50,Revenue,Spalding (UK) Limited,20264
Chorley Borough Council,http://statistics.data.gov.uk/id/local-authority/30UE,General Fund Revenue Account,,Customer & Digital,Supplies-Grounds Maintenance,40025,Expenditure,,Garden Fork 28`` S&J Neverbend.  Product Code = 30809,29/11/2017,125808,82.50,Revenue,Spalding (UK) Limited,20264
Chorley Borough Council,http://statistics.data.gov.uk/id/local-authority/30UE,Environ & Regulatory Ser,,Customer & Digital,Supplies-Grounds Maintenance,40025,Expenditure,,"Lawn Rake, Springbok,  Bulldog Premier.  Product Code = 04101",29/11/2017,125808,73.75,Revenue,Spalding (UK) Limited,20264
Chorley Borough Council,http://statistics.data.gov.uk/id/local-authority/30UE,Group Director Service Group A,,Customer & Digital,Supplies-Grounds Maintenance,40025,Cash,,Open Socket Pan Shovel.  Product Code = 04152,29/11/2017,125808,53.75,Revenue,Spalding (UK) Limited,20264
Chorley Borough Council,http://statistics.data.gov.uk/id/local-authority/30UE,Chorley Borough Council,,Customer & Digital,Supplies-Grounds Maintenance,40025,Cash,,Spaldings Hand Trowel.  Product Code = 09320,29/11/2017,125808,9.00,Revenue,Spalding (UK) Limited,20264
Chorley Borough Council,http://statistics.data.gov.uk/id/local-authority/30UE,General Fund Revenue Account,,Early Intervention,Miscellaneous Expenses,40200,Expenditure,,Extension of the Spice contract for the financial years 2017-2018 and 2108-2019. provide continued delivery of Time Credit network,08/11/2017,125242,"20,000.00",Revenue,Spice Innovations Ltd,61318
Chorley Borough Council,http://statistics.data.gov.uk/id/local-authority/30UE,Budget Holder Control Code,,Business Development & Growth,Electricity,20013,Energy Costs,5006,2 oak house,01/11/2017,125153,257.20,Revenue,SSE Swalec,76853
Chorley Borough Council,http://statistics.data.gov.uk/id/local-authority/30UE,Finance,,Business Development & Growth,Electricity,20013,Energy Costs,5006,oak house,01/11/2017,125157,257.20,Revenue,SSE Swalec,76853
Chorley Borough Council,http://statistics.data.gov.uk/id/local-authority/30UE,Finance,,Policy & Governance,Other Contributions,40145,Grants,,For provision of service 7C from 27.08.17 to 31.03.18,24/11/2017,125696,"7,339.59",Revenue,Stagecoach Services Limited,18598
Chorley Borough Council,http://statistics.data.gov.uk/id/local-authority/30UE,Finance,,Policy & Governance,Other Contributions,40145,Grants,,For provision of service 7C from 27.08.17 to 31.03.18,29/11/2017,125711,"7,880.18",Revenue,Stagecoach Services Limited,18598
Chorley Borough Council,http://statistics.data.gov.uk/id/local-authority/30UE,Corporate  Democratic Core,,Policy & Governance,Processional Routes,40177,Expenditure,,Provision of sound equipment at the Cenotaph in Astley Park for Chorley`s for Remembrance Sunday service on 12th Nov17,15/11/2017,125474,595.00,Revenue,Star Drive Music,16840
Chorley Borough Council,http://statistics.data.gov.uk/id/local-authority/30UE,ECPS,,Business Development & Growth,Other Capital Related Fees,3024,Other Subjective Codes,,Provision of Public Realm & Highway Design Engineering services as per contract for a period of 30 months w/c 5th June 2017,15/11/2017,125478,"3,375.00",Revenue,Street Civil Engineering Limited,76750
Chorley Borough Council,http://statistics.data.gov.uk/id/local-authority/30UE,Community Development,1097,Policy & Governance,Core Funding Grants,40133,Expenditure,,2nd Instalment of 1st year contract for Community Safety Services,17/11/2017,125524,"4,000.00",Revenue,Street Pastors,21946
Chorley Borough Council,http://statistics.data.gov.uk/id/local-authority/30UE,"RO5 Cult, Env, Reg & Planning",,Business Development & Growth,General Repairs - Reactive,20004,Premises Related Expenses,,Supply 5 heavy duty grates TF8250,01/11/2017,124904,852.72,Revenue,Stringfellow Bldg Cntrctrs Ltd,17893
Chorley Borough Council,http://statistics.data.gov.uk/id/local-authority/30UE,Central and Support Services,,Business Development & Growth,General Repairs - Reactive,20004,Net Expenditure or Balance,,blanket order for reactive repairs on all sites,01/11/2017,124907,400.53,Revenue,Stringfellow Bldg Cntrctrs Ltd,17893
Chorley Borough Council,http://statistics.data.gov.uk/id/local-authority/30UE,Finance,,Business Development & Growth,General Repairs - Reactive,20004,Expenditure,,blanket order for reactive repairs on all sites,01/11/2017,124913,629.05,Revenue,Stringfellow Bldg Cntrctrs Ltd,17893
Chorley Borough Council,http://statistics.data.gov.uk/id/local-authority/30UE,Central and Support Apportiona,,Business Development & Growth,General Repairs - Reactive,20004,Expenditure,,blanket order for reactive repairs on all sites,01/11/2017,124914,660.31,Revenue,Stringfellow Bldg Cntrctrs Ltd,17893
Chorley Borough Council,http://statistics.data.gov.uk/id/local-authority/30UE,Central and Support Services,,Business Development & Growth,General Repairs - Reactive,20004,Building Repairs & Maintenance,,blanket order for reactive repairs on all sites,01/11/2017,125108,300.00,Revenue,Stringfellow Bldg Cntrctrs Ltd,17893
Chorley Borough Council,http://statistics.data.gov.uk/id/local-authority/30UE,Central and Support Services,,Business Development & Growth,General Repairs - Reactive,20004,Building Repairs & Maintenance,,blanket order for reactive repairs on all sites,01/11/2017,125110,250.00,Revenue,Stringfellow Bldg Cntrctrs Ltd,17893
Chorley Borough Council,http://statistics.data.gov.uk/id/local-authority/30UE,Central and Support Services,,Business Development & Growth,General Repairs - Reactive,20004,Building Repairs & Maintenance,,blanket order for reactive repairs on all sites,08/11/2017,125143,255.90,Revenue,Stringfellow Bldg Cntrctrs Ltd,17893
Chorley Borough Council,http://statistics.data.gov.uk/id/local-authority/30UE,Central and Support Services,,Business Development & Growth,General Repairs - Reactive,20004,Building Repairs & Maintenance,,blanket order for reactive repairs on all sites,08/11/2017,125145,296.09,Revenue,Stringfellow Bldg Cntrctrs Ltd,17893
Chorley Borough Council,http://statistics.data.gov.uk/id/local-authority/30UE,General Fund Revenue Account,,Business Development & Growth,General Repairs - Reactive,20004,Expenditure,,blanket order for reactive repairs on all sites,08/11/2017,125146,280.70,Revenue,Stringfellow Bldg Cntrctrs Ltd,17893
Chorley Borough Council,http://statistics.data.gov.uk/id/local-authority/30UE,Nigel Fairclough,,Early Intervention,Grants,3002,Other Subjective Codes,,ADDRESS REDACTED,08/11/2017,125257,"3,549.50",Revenue,Stringfellow Bldg Cntrctrs Ltd,17893
Chorley Borough Council,http://statistics.data.gov.uk/id/local-authority/30UE,Capital Expenditure,Capital,Early Intervention,Grants,3002,Other Subjective Codes,,ADDRESS REDACTED,08/11/2017,125258,"3,101.00",Capital,Stringfellow Bldg Cntrctrs Ltd,17893
Chorley Borough Council,http://statistics.data.gov.uk/id/local-authority/30UE,Disabled Facilities Grants,,Early Intervention,Grants,3002,Capital Fund Subjectives,,ADDRESS REDACTED,08/11/2017,125259,"8,085.00",Revenue,Stringfellow Bldg Cntrctrs Ltd,17893
Chorley Borough Council,http://statistics.data.gov.uk/id/local-authority/30UE,Central and Support Apportiona,,Business Development & Growth,General Repairs - Reactive,20004,Building Repairs & Maintenance,,blanket order for reactive repairs on all sites,15/11/2017,125275,458.49,Revenue,Stringfellow Bldg Cntrctrs Ltd,17893
Chorley Borough Council,http://statistics.data.gov.uk/id/local-authority/30UE,Disabled Facilities Grants,,Early Intervention,Grants,3002,Net Expenditure,,ADDRESS REDACTED,10/11/2017,125400,"3,140.00",Revenue,Stringfellow Bldg Cntrctrs Ltd,17893
Chorley Borough Council,http://statistics.data.gov.uk/id/local-authority/30UE,General Fund HIP Schemes,,Early Intervention,Grants,3002,Other Funds and Balance Sheet,,ADDRESS REDACTED,10/11/2017,125401,"3,507.50",Revenue,Stringfellow Bldg Cntrctrs Ltd,17893
Chorley Borough Council,http://statistics.data.gov.uk/id/local-authority/30UE,General Fund Revenue Account,,Policy & Governance,Asset Maintenance Fund,20012,Building Repairs & Maintenance,,As per quotation to undertake alterations to Town Hall rear corridor door to improve disabled access. NAMES REDACTED,29/11/2017,125697,750.00,Revenue,Stringfellow Bldg Cntrctrs Ltd,17893
Chorley Borough Council,http://statistics.data.gov.uk/id/local-authority/30UE,Governance,,Business Development & Growth,Cleaning Materials,40019,Cleaning Materials,,Please supply janitorial supplies as per e-mail.,10/11/2017,125398,310.07,Revenue,Swiftkleen Ltd,17933
Chorley Borough Council,http://statistics.data.gov.uk/id/local-authority/30UE,Performing Organisation,,Policy & Governance,Cleaning Materials,40019,Materials & Supplies,,TB Atlas thick bleach 5ltr QTY 2 boxes @ 1.55 per container,29/11/2017,125483,6.20,Revenue,Swiftkleen Ltd,17933
Chorley Borough Council,http://statistics.data.gov.uk/id/local-authority/30UE,Unapportionable Central OHeads,1009,Policy & Governance,Cleaning Materials,40019,Materials & Supplies,,BLU Evans High Active Washing up Liquid/Detergent 5 litre PH Neutral 3.26 QTY 1 box,29/11/2017,125483,6.52,Revenue,Swiftkleen Ltd,17933
Chorley Borough Council,http://statistics.data.gov.uk/id/local-authority/30UE,Performing Organisation,,Policy & Governance,Cleaning Materials,40019,Materials & Supplies,,CP Charm Furniture polish 95p each QTY 8,29/11/2017,125483,6.48,Revenue,Swiftkleen Ltd,17933
Chorley Borough Council,http://statistics.data.gov.uk/id/local-authority/30UE,Budget Holder Control Code,,Policy & Governance,Cleaning Materials,40019,Materials & Supplies,,TR320 toilet rolls QTY 12 packs @ 36/pack at 5.50 per box,29/11/2017,125483,66.00,Revenue,Swiftkleen Ltd,17933
Chorley Borough Council,http://statistics.data.gov.uk/id/local-authority/30UE,Vision,,Policy & Governance,Cleaning Materials,40019,Materials & Supplies,,Paper towels 3600 green 1 fold QTY 20 boxes 10.10 per box,29/11/2017,125483,202.00,Revenue,Swiftkleen Ltd,17933
Chorley Borough Council,http://statistics.data.gov.uk/id/local-authority/30UE,Performing Organisation,,Policy & Governance,Cleaning Materials,40019,Materials & Supplies,,"UB3752	 Sirius Centrefeed 2 ply roll 150m Blue 6 pack 11.70 QTY 4 packs",29/11/2017,125483,28.80,Revenue,Swiftkleen Ltd,17933
Chorley Borough Council,http://statistics.data.gov.uk/id/local-authority/30UE,Governance,,Policy & Governance,Cleaning Materials,40019,Materials & Supplies,,TBS Toilet brush and holder 2 each QTY 8,29/11/2017,125483,7.60,Revenue,Swiftkleen Ltd,17933
Chorley Borough Council,http://statistics.data.gov.uk/id/local-authority/30UE,Central and Support Services,,Policy & Governance,Cleaning Materials,40019,Materials & Supplies,,39BBL Black bin liners QTY 5 boxes 11.70 per box,29/11/2017,125483,58.50,Revenue,Swiftkleen Ltd,17933
Chorley Borough Council,http://statistics.data.gov.uk/id/local-authority/30UE,Central & Support Appointments,1009,Policy & Governance,Cleaning Materials,40019,Materials & Supplies,,SAF Stand up air freshener 12 per case and 3.36 per case QTY 3 cases,29/11/2017,125483,10.08,Revenue,Swiftkleen Ltd,17933
Chorley Borough Council,http://statistics.data.gov.uk/id/local-authority/30UE,Central and Support Services,,Policy & Governance,Cleaning Materials,40019,Materials & Supplies,,CAF Spray Air fresh QTY 12 @0.70 each,29/11/2017,125483,6.00,Revenue,Swiftkleen Ltd,17933
Chorley Borough Council,http://statistics.data.gov.uk/id/local-authority/30UE,Central & Support Appointments,1009,Policy & Governance,Cleaning Materials,40019,Materials & Supplies,,DCS Blue Dishcloths QTY 10 packs 10/pack @ 1.92 each,29/11/2017,125483,19.90,Revenue,Swiftkleen Ltd,17933
Chorley Borough Council,http://statistics.data.gov.uk/id/local-authority/30UE,Central and Support Services,,Policy & Governance,Cleaning Materials,40019,Materials & Supplies,,DBUG Floorscrubber handle 7.20 each QTY 4,29/11/2017,125483,28.80,Revenue,Swiftkleen Ltd,17933
Chorley Borough Council,http://statistics.data.gov.uk/id/local-authority/30UE,Unapportionable Central OHeads,1009,Policy & Governance,Cleaning Materials,40019,Materials & Supplies,,NITPF Nitrile gloves size M 47.12 per case QTY 1,29/11/2017,125483,29.50,Revenue,Swiftkleen Ltd,17933
Chorley Borough Council,http://statistics.data.gov.uk/id/local-authority/30UE,Mgnt & Support Services,,Policy & Governance,Cleaning Materials,40019,Materials & Supplies,,DA/B disposable aprons QTY 1 pack 1.98,29/11/2017,125483,1.69,Revenue,Swiftkleen Ltd,17933
Chorley Borough Council,http://statistics.data.gov.uk/id/local-authority/30UE,Unapportionable Central OHeads,1009,Policy & Governance,Cleaning Materials,40019,Materials & Supplies,,FM Surgical face mask pack of 50 QTY 2 packs 3.64 each pack,29/11/2017,125483,3.96,Revenue,Swiftkleen Ltd,17933
Chorley Borough Council,http://statistics.data.gov.uk/id/local-authority/30UE,Central and Support Services,,Policy & Governance,Cleaning Materials,40019,Materials & Supplies,,TRI   Evans Vanodine Trigon handsoap unperfumed 5 L  5.52 each QTY 2,29/11/2017,125483,11.04,Revenue,Swiftkleen Ltd,17933
Chorley Borough Council,http://statistics.data.gov.uk/id/local-authority/30UE,Unapportionable Central OHeads,1009,Policy & Governance,Cleaning Materials,40019,Materials & Supplies,,FLASHB Flash with bleach 500ml @ 1.38 each QTY 4,29/11/2017,125483,4.88,Revenue,Swiftkleen Ltd,17933
Chorley Borough Council,http://statistics.data.gov.uk/id/local-authority/30UE,Central and Support Services,,Policy & Governance,Cleaning Materials,40019,Materials & Supplies,,WGGG Grip gloves size 8 QTY 10 pairs 0.87 each,29/11/2017,125483,7.40,Revenue,Swiftkleen Ltd,17933
Chorley Borough Council,http://statistics.data.gov.uk/id/local-authority/30UE,Comprehensive I&E Statement,,Business Development & Growth,Grounds Maintenance Contractor,20043,Expenditure,,Mowing and bailing of Blainscough Wood Nature Reserve and cutting of the hedgerow.  Bales to be removed off site.,01/11/2017,125073,825.00,Revenue,T & L Kirkham,17058
Chorley Borough Council,http://statistics.data.gov.uk/id/local-authority/30UE,Chorley Borough Council,,Policy & Governance,Miscellaneous Expenses,40200,Cash,,Provision of plant cr�che for Chorley Flower Show,29/11/2017,125760,350.00,Revenue,The Astley Walled Gardeners,70095
Chorley Borough Council,http://statistics.data.gov.uk/id/local-authority/30UE,Policy and Performance,,Policy & Governance,Exhibitions & Special Events,40158,Miscellaneous Expenses,5034,Chorley Live 2017,24/11/2017,125566,"3,250.00",Revenue,The Creative Network,61874
Chorley Borough Council,http://statistics.data.gov.uk/id/local-authority/30UE,General Fund Revenue Account,,Business Development & Growth,General Repairs - Reactive,20004,Expenditure,,Blanket  reactive order from Jul 2017,01/11/2017,125046,320.00,Revenue,The Guardian Shutter Co LTD,21769
Chorley Borough Council,http://statistics.data.gov.uk/id/local-authority/30UE,Deputy Chief Executive,,Business Development & Growth,Rep/Mtce Fixtures & Fittings,20028,Premises Related Expenses,,Please repair shutter for cabin 24 in Chorley covered market,15/11/2017,125476,260.00,Revenue,The Guardian Shutter Co LTD,21769
Chorley Borough Council,http://statistics.data.gov.uk/id/local-authority/30UE,Business Improvement,,Policy & Governance,Data Protection Registration,40173,Net Expenditure or Balance,,reg renewals,22/11/2017,125612,560.00,Revenue,The Information Commissioner,16278
Chorley Borough Council,http://statistics.data.gov.uk/id/local-authority/30UE,Legal Services Unit,,Policy & Governance,Practising Certificates,40202,Other Expenses,,PC fees 2017/2018 for NAMES REDACTED,22/11/2017,125625,"1,157.00",Revenue,The Law Society,57091
Chorley Borough Council,http://statistics.data.gov.uk/id/local-authority/30UE,General Fund Revenue Account,,Policy & Governance,Exhibitions & Special Events,40158,Miscellaneous Expenses,5034,"10,000 x Chorley Live 2017/Checkout Chorley branded beer mats 94mm square with round corners",22/11/2017,125373,388.00,Revenue,Thirstys.co.uk ltd,51260
Chorley Borough Council,http://statistics.data.gov.uk/id/local-authority/30UE,Deputy Chief Executive,,Business Development & Growth,Gas,20014,Premises Related Expenses,,Leigh arms,29/11/2017,125703,534.36,Revenue,Total Gas and Power,77034
Chorley Borough Council,http://statistics.data.gov.uk/id/local-authority/30UE,Heart of Economic Development,,Business Development & Growth,External Contractors,50008,Private Contractors,,Outstanding Debt Registration Costs,17/11/2017,125596,"1,000.00",Revenue,Traffic Enforcement Centre,22350
Chorley Borough Council,http://statistics.data.gov.uk/id/local-authority/30UE,Conrad Heald,,Business Development & Growth,External Contractor,40198,Contracting Expenses & Fees,,Seasonal Winter maintenance programme 2017/18 as per quote dated 4/10/2017 WP17/18/auth/q/C.as supplied inc 7 day service,15/11/2017,125342,"2,259.50",Revenue,Trevelyan Hall Ltd t/a Litterboss,71709
Chorley Borough Council,http://statistics.data.gov.uk/id/local-authority/30UE,Chorley Borough Council,,Policy & Governance,Service Fees,40056,Expenditure,,Attendance at Streetscene Health & Wellbeing Day,29/11/2017,125839,670.00,Revenue,Truly Therapeutic Ltd,66885
Chorley Borough Council,http://statistics.data.gov.uk/id/local-authority/30UE,General Fund Revenue Account,,Policy & Governance,Miscellaneous Expenses,40200,Miscellaneous Expenses,,levels 1-5,29/11/2017,125852,"1,545.60",Revenue,UK Healthcare (BDHSC),17241
Chorley Borough Council,http://statistics.data.gov.uk/id/local-authority/30UE,Payroll Related Holding Accs,,Policy & Governance,General Balances,100,Other,,top ups,29/11/2017,125852,613.71,Revenue,UK Healthcare (BDHSC),17241
Chorley Borough Council,http://statistics.data.gov.uk/id/local-authority/30UE,Mgnt & Support Services,,Policy & Governance,Exhibitions & Special Events,40158,Miscellaneous Expenses,5034,"Provision and delivery of the stage, light, sound and event infrastructure of the Christmas lights switch on as per quote SQ465",29/11/2017,125842,"3,230.75",Revenue,UK Media and Events Limited,71221
Chorley Borough Council,http://statistics.data.gov.uk/id/local-authority/30UE,Helen Sutton,,Customer & Digital,Service Fees,40056,Services,5027,Daily Hybrid mail & Annual Billing,01/11/2017,125047,"1,231.88",Revenue,UKMAIL Ltd (Mail),57758
Chorley Borough Council,http://statistics.data.gov.uk/id/local-authority/30UE,Customer Democratic and Legal,,Customer & Digital,Service Fees,40056,Services,5027,Daily Hybrid mail & Annual Billing,01/11/2017,125048,873.57,Revenue,UKMAIL Ltd (Mail),57758
Chorley Borough Council,http://statistics.data.gov.uk/id/local-authority/30UE,Helen Sutton,,Customer & Digital,Service Fees,40056,Services,5027,Daily Hybrid mail & Annual Billing,01/11/2017,125049,608.43,Revenue,UKMAIL Ltd (Mail),57758
Chorley Borough Council,http://statistics.data.gov.uk/id/local-authority/30UE,Helen Sutton,,Customer & Digital,Service Fees,40056,Services,5027,Daily Hybrid mail & Annual Billing,01/11/2017,125050,901.93,Revenue,UKMAIL Ltd (Mail),57758
Chorley Borough Council,http://statistics.data.gov.uk/id/local-authority/30UE,Central and Support Apportiona,,Customer & Digital,Service Fees,40056,Services,5027,Daily Hybrid mail & Annual Billing,15/11/2017,125502,948.22,Revenue,UKMAIL Ltd (Mail),57758
Chorley Borough Council,http://statistics.data.gov.uk/id/local-authority/30UE,Customer Services,,Customer & Digital,Service Fees,40056,Services,5027,Daily Hybrid mail & Annual Billing,17/11/2017,125504,623.65,Revenue,UKMAIL Ltd (Mail),57758
Chorley Borough Council,http://statistics.data.gov.uk/id/local-authority/30UE,Non Distributed Costs,,Customer & Digital,Service Fees,40056,Services,5027,Daily Hybrid mail & Annual Billing,17/11/2017,125505,867.13,Revenue,UKMAIL Ltd (Mail),57758
Chorley Borough Council,http://statistics.data.gov.uk/id/local-authority/30UE,Customer Services,,Customer & Digital,Service Fees,40056,Services,5027,Hybrid Mail,29/11/2017,125738,713.39,Revenue,UKMAIL Ltd (Mail),57758
Chorley Borough Council,http://statistics.data.gov.uk/id/local-authority/30UE,Customer ICT & Transactl Servs,,Customer & Digital,Service Fees,40056,Services,5027,Hybrid Mail,29/11/2017,125739,625.60,Revenue,UKMAIL Ltd (Mail),57758
Chorley Borough Council,http://statistics.data.gov.uk/id/local-authority/30UE,Control  Holding and Suspense,,Policy & Governance,General Balances,100,Other Subjective Codes,,sal ded,22/11/2017,125617,"1,828.85",Revenue,Unify Credit Union Ltd,55509
Chorley Borough Council,http://statistics.data.gov.uk/id/local-authority/30UE,Capital Fund,,Early Intervention,Grants,3002,Capital Fund Subjectives,,ADDRESS REDACTED,10/11/2017,125404,"18,956.00",Revenue,UPS Building and Maintenance Ltd,76235
Chorley Borough Council,http://statistics.data.gov.uk/id/local-authority/30UE,Housing Investment Programme,,Early Intervention,Grants,3002,Net Expenditure,,ADDRESS REDACTED,29/11/2017,125792,"3,928.00",Revenue,UPS Building and Maintenance Ltd,76235
Chorley Borough Council,http://statistics.data.gov.uk/id/local-authority/30UE,Planning,,Customer & Digital,Professional Fees,40063,Professional Fees,,Fees for professional planning advice,01/11/2017,124523,"6,068.15",Revenue,Urban Vision Partnership Ltd,21181
Chorley Borough Council,http://statistics.data.gov.uk/id/local-authority/30UE,Planning Services Units,,Customer & Digital,Legal Fees,40171,Miscellaneous Expenses,,Work to be undertaken by Urban Vision in respect of the Planning Appeal submitted ,15/11/2017,125291,"10,056.50",Revenue,Urban Vision Partnership Ltd,21181
Chorley Borough Council,http://statistics.data.gov.uk/id/local-authority/30UE,Development Control,10267to70,Customer & Digital,Professional Fees,40063,Professional Fees,,Fees for professional planning advice,24/11/2017,125292,"8,033.10",Revenue,Urban Vision Partnership Ltd,21181
Chorley Borough Council,http://statistics.data.gov.uk/id/local-authority/30UE,Planning Services Units,,Business Development & Growth,Professional Fees,40063,Professional Fees,,Urban Vision Staff - Planning work,29/11/2017,125747,"2,194.65",Revenue,Urban Vision Partnership Ltd,21181
Chorley Borough Council,http://statistics.data.gov.uk/id/local-authority/30UE,Planning Services Units,,Chief Executive,Consultants' Fees,40077,Consultants Fees,,"1. An outlet village retaining and refurbishing the mill with 20,000m2 of new A1 and A3 floorspace. 2. Residential development. ",24/11/2017,125752,"10,289.64",Revenue,Urban Vision Partnership Ltd,21181
Chorley Borough Council,http://statistics.data.gov.uk/id/local-authority/30UE,Comprehensive I&E Statement,,Customer & Digital,Unitary Payment(S),50009,Net Expenditure or Balance,,Provision of household waste and recycling collection service including subscription garden waste collections and other ancillary ,15/11/2017,125479,"274,640.75",Revenue,Veolia ES (UK) Ltd,20748
Chorley Borough Council,http://statistics.data.gov.uk/id/local-authority/30UE,Comprehensive I&E Statement,,Customer & Digital,Unitary Payment(S),50009,Private Contractors,,Provision of household waste and recycling collection service including subscription garden waste collections and other ancillary ,15/11/2017,125484,"274,640.75",Revenue,Veolia ES (UK) Ltd,20748
Chorley Borough Council,http://statistics.data.gov.uk/id/local-authority/30UE,Planning Services Unit,,Customer & Digital,Agency Staff,13000,Agency Staff,,Recruitment Agency Services (Temporary Enforcement Officer: 12 October 2017 to 12 January 2018),03/11/2017,125164,468.00,Revenue,Vivid Resourcing Ltd,76938
Chorley Borough Council,http://statistics.data.gov.uk/id/local-authority/30UE,Planning Services Unit,,Customer & Digital,Agency Staff,13000,Agency Staff,,Recruitment Agency Services (Temporary Enforcement Officer: 12 October 2017 to 12 January 2018),03/11/2017,125165,"1,332.00",Revenue,Vivid Resourcing Ltd,76938
Chorley Borough Council,http://statistics.data.gov.uk/id/local-authority/30UE,Chorley Borough Council,,Customer & Digital,Agency Staff,13000,Agency Staff,,Recruitment Agency Services (Temporary Enforcement Officer: 12 October 2017 to 12 January 2018),03/11/2017,125222,"1,332.00",Revenue,Vivid Resourcing Ltd,76938
Chorley Borough Council,http://statistics.data.gov.uk/id/local-authority/30UE,Deputy Chief Executive,,Customer & Digital,Agency Staff,13000,Cash,,Recruitment Agency Services (Temporary Enforcement Officer: 12 October 2017 to 12 January 2018),29/11/2017,125745,"1,332.00",Revenue,Vivid Resourcing Ltd,76938
Chorley Borough Council,http://statistics.data.gov.uk/id/local-authority/30UE,Customer ICT &  Trans Services,,Customer & Digital,Computer Equipment - Security,40106,Computer Maintenance & Support,,quarterly charge,03/11/2017,124669,"3,182.43",Revenue,Vodafone Ltd,60180
Chorley Borough Council,http://statistics.data.gov.uk/id/local-authority/30UE,Asim Khan,,Customer & Digital,Miscellaneous Expenses,40200,Miscellaneous Expenses,,Deep Freeze Standard X 48 @ 31.99 per license Maintenance + Support - 1 Year - Mandatory for first year x 50 @ 6.70,29/11/2017,124581,"1,857.12",Revenue,Vohkus Limited,67630
Chorley Borough Council,http://statistics.data.gov.uk/id/local-authority/30UE,Operational and IT Security,,Customer & Digital,Computer Equipment-Purchase,40098,Cash,,Optoma W330 - DLP projector - 3D - 3000 ANSI lumens - WXGA (1280 x 800) - 16:10 - HD 720p x 1,01/11/2017,125032,270.00,Revenue,Vohkus Limited,67630
Chorley Borough Council,http://statistics.data.gov.uk/id/local-authority/30UE,ICT,,Customer & Digital,Computer Equipment-Purchase,40098,Cash,,Lightning to USB Cable x30 12W USB POWER ADAPTER x 30,22/11/2017,125580,810.00,Revenue,Vohkus Limited,67630
Chorley Borough Council,http://statistics.data.gov.uk/id/local-authority/30UE,Environmental Health,,Policy & Governance,Car Leasing Payment,14100,Expenditure,,NAME REDACTED,29/11/2017,125849,"2,240.63",Revenue,VWFS UK Ltd T/A Volkswagen Group Leasing,56010
Chorley Borough Council,http://statistics.data.gov.uk/id/local-authority/30UE,Neighbourhoods,,Policy & Governance,Car Leasing Payment,14100,Net Expenditure or Balance,,,29/11/2017,125849,191.14,Revenue,VWFS UK Ltd T/A Volkswagen Group Leasing,56010
Chorley Borough Council,http://statistics.data.gov.uk/id/local-authority/30UE,VAT Holding Account,,Policy & Governance,Manual Control Account,1,Other Subjective Codes,,,29/11/2017,125849,-191.14,Revenue,VWFS UK Ltd T/A Volkswagen Group Leasing,56010
Chorley Borough Council,http://statistics.data.gov.uk/id/local-authority/30UE,Customer Services,,Policy & Governance,Car Leasing Payment,14100,Expenditure,,NAME REDACTED,29/11/2017,125850,616.52,Revenue,VWFS UK Ltd T/A Volkswagen Group Leasing,56010
Chorley Borough Council,http://statistics.data.gov.uk/id/local-authority/30UE,Comprehensive I&E Statement,,Policy & Governance,Car Leasing Payment,14100,Expenditure,,,29/11/2017,125850,53.73,Revenue,VWFS UK Ltd T/A Volkswagen Group Leasing,56010
Chorley Borough Council,http://statistics.data.gov.uk/id/local-authority/30UE,Control  Holding and Suspense,,Policy & Governance,Manual Control Account,1,Other Funds and Balance Sheet,,,29/11/2017,125850,-53.73,Revenue,VWFS UK Ltd T/A Volkswagen Group Leasing,56010
Chorley Borough Council,http://statistics.data.gov.uk/id/local-authority/30UE,General Fund Revenue Account,,Policy & Governance,Car Leasing Payment,14100,Expenditure,,NAME REDACTED,29/11/2017,125851,544.30,Revenue,VWFS UK Ltd T/A Volkswagen Group Leasing,56010
Chorley Borough Council,http://statistics.data.gov.uk/id/local-authority/30UE,Unapportionable Central OHeads,1009,Policy & Governance,Car Leasing Payment,14100,Expenditure,,,29/11/2017,125851,48.81,Revenue,VWFS UK Ltd T/A Volkswagen Group Leasing,56010
Chorley Borough Council,http://statistics.data.gov.uk/id/local-authority/30UE,VAT Holding Account,,Policy & Governance,Manual Control Account,1,Other Subjective Codes,,,29/11/2017,125851,-48.81,Revenue,VWFS UK Ltd T/A Volkswagen Group Leasing,56010
Chorley Borough Council,http://statistics.data.gov.uk/id/local-authority/30UE,Central & Support Appointments,1009,Business Development & Growth,Water - Unmetered Supply,20023,Water Services,5009,eaves lane,01/11/2017,125121,"1,253.19",Revenue,Water-plus,17926
Chorley Borough Council,http://statistics.data.gov.uk/id/local-authority/30UE,Group Director Service Group A,,Business Development & Growth,Water - Metered Supplies,20022,Water Services,,byron st,08/11/2017,125279,832.69,Revenue,Water-plus,17926
Chorley Borough Council,http://statistics.data.gov.uk/id/local-authority/30UE,Environmental Services Unit,,Business Development & Growth,Water - Metered Supplies,20022,Premises Related Expenses,,toilets,08/11/2017,125280,"2,117.25",Revenue,Water-plus,17926
Chorley Borough Council,http://statistics.data.gov.uk/id/local-authority/30UE,Chief Executive,,Business Development & Growth,Water - Unmetered Supply,20023,Water Services,5009,eaves lane,29/11/2017,125702,835.22,Revenue,Water-plus,17926
Chorley Borough Council,http://statistics.data.gov.uk/id/local-authority/30UE,General Fund Revenue Account,,Business Development & Growth,Water - Metered Supplies,20022,Premises Related Expenses,,market stall,29/11/2017,125716,311.86,Revenue,Water-plus,17926
Chorley Borough Council,http://statistics.data.gov.uk/id/local-authority/30UE,Chorley Borough Council,,Business Development & Growth,Equipment,3014,Other,,"Consultancy in connection with King George V Playing Field drainage scheme:- Detailed design, drawings and specification",10/11/2017,125364,"5,000.00",Revenue,Westlakes Engineering Ltd,74337
Chorley Borough Council,http://statistics.data.gov.uk/id/local-authority/30UE,Group Director Service Group A,,Early Intervention,Miscellaneous Expenses,40200,Supplies and Services,,"Metal Pins  1x plain white 		 1x hands are not for hurting	 1x Football 			 White Ribbons pack of 100  Posters  1x A girl that ",29/11/2017,125847,305.88,Revenue,White Ribbon Campaign,72221
Chorley Borough Council,http://statistics.data.gov.uk/id/local-authority/30UE,Use or E R and Gen Bal,,Business Development & Growth,Contributions Parish Councils,40144,Cash,,cil receipt,01/11/2017,125095,"5,393.24",Revenue,Whittle-le-Woods Parish Council,18602
Chorley Borough Council,http://statistics.data.gov.uk/id/local-authority/30UE,Finance,,Business Development & Growth,Search Fees,40068,Expenditure,,Land drainage consent at ADDRESS REDACTED,15/11/2017,125223,975.00,Revenue,William Pye Ltd,60564
Chorley Borough Council,http://statistics.data.gov.uk/id/local-authority/30UE,Service Management & Support,1009,Business Development & Growth,External Contractor,40198,Contracting Expenses & Fees,,carry out works at Huntsfield as per quotation Ref:16316.,15/11/2017,125224,"19,650.00",Revenue,William Pye Ltd,60564
Chorley Borough Council,http://statistics.data.gov.uk/id/local-authority/30UE,Neighbourhoods,,Customer & Digital,Vehicle Maintenance,30045,Expenditure,,Complete repairs to FH15 MZU as per Invoice No 10325,22/11/2017,125601,339.00,Revenue,Wrekamendid Services Ltd,21188
Chorley Borough Council,http://statistics.data.gov.uk/id/local-authority/30UE,General Fund Revenue Account,,Customer & Digital,Computer - Support Services,40111,Expenditure,,Xerox 510 wide format printer use,29/11/2017,125480,355.58,Revenue,Xeretec Document Solutions,20052
Chorley Borough Council,http://statistics.data.gov.uk/id/local-authority/30UE,Chorley Council,,Customer & Digital,Protective Clothing,40040,Expenditure,,Rodo Guardian High Leg Safety Boot.  Size = 10  Product Code = ROD667,22/11/2017,125542,29.80,Revenue,Yeshili Reflective Material Co Ltd T/A VIZWEAR,76338
Chorley Borough Council,http://statistics.data.gov.uk/id/local-authority/30UE,Street Services,,Customer & Digital,Protective Clothing,40040,Net Expenditure or Balance,,Rodo Guardian High Leg Safety Boot.  Size = 9  Product Code = ROD667,22/11/2017,125542,77.60,Revenue,Yeshili Reflective Material Co Ltd T/A VIZWEAR,76338
Chorley Borough Council,http://statistics.data.gov.uk/id/local-authority/30UE,Street Environment,,Customer & Digital,Protective Clothing,40040,Net Expenditure or Balance,,Rodo Guardian High Leg Safety Boot.  Size = 8  Product Code = ROD667,22/11/2017,125542,71.40,Revenue,Yeshili Reflective Material Co Ltd T/A VIZWEAR,76338
Chorley Borough Council,http://statistics.data.gov.uk/id/local-authority/30UE,Budget Holder Control Code,,Customer & Digital,Protective Clothing,40040,Net Expenditure or Balance,,PU Gripper Glove grey seamless knitted nylon glove with PU coated palm.  Size = Large.  Product Code = ROD735,22/11/2017,125542,73.20,Revenue,Yeshili Reflective Material Co Ltd T/A VIZWEAR,76338
